Body Name,Body,Creditor Name,Spending Service,Nature of Spend,Ledger Date,Reference Number,Goods Amount (excluding VAT)
Lancaster City Council,30UH,1ST METRO LOCKSMITHS,Health & Housing,Printing & Stationery,2/20/2018,hpc000687,26.25
Lancaster City Council,30UH,2B Hydraulics,Environmental Services,Repair & Mtce Of Vehicles,3/6/2018,42826,345.43
Lancaster City Council,30UH,A  G PLASTICS,Environmental Services,Materials - General,3/5/2018,42738,70.00
Lancaster City Council,30UH,A J Exotic and pet Supplies,Environmental Services,Equipment and Tools - General,2/27/2018,42634,9.98
Lancaster City Council,30UH,A2B Stationery,Health & Housing,Marketing,3/29/2018,bpc006113,22.37
Lancaster City Council,30UH,Academy Class,Regeneration and Planning,Marketing,2/1/2018,42323,597.00
Lancaster City Council,30UH,ACM Training,Health & Housing,Use Of Public Tpt - Officers,3/13/2018,bpc006069,142.80
Lancaster City Council,30UH,Adept Networks,Resources,R & M - Buildings,2/28/2018,ppc001251,90.05
Lancaster City Council,30UH,Adept Networks,Resources,Equipment and Tools - General,3/16/2018,ppc001289,220.20
Lancaster City Council,30UH,Adobe,Regeneration and Planning,Marketing,3/20/2018,npc002456,1516.80
Lancaster City Council,30UH,Adobe,Health & Housing,Photographic Materials,1/3/2018,bpc005930,4.16
Lancaster City Council,30UH,Adobe,Health & Housing,Software Purchase\Licences,1/3/2018,bpc005931,606.72
Lancaster City Council,30UH,Adobe,Resources,Miscellaneous Licences,3/7/2018,ppc001279,21.72
Lancaster City Council,30UH,Adobe,Resources,Miscellaneous Licences,1/25/2018,ppc001185,21.72
Lancaster City Council,30UH,Adobe,Resources,Miscellaneous Licences,2/1/2018,ppc001219,21.72
Lancaster City Council,30UH,Adt Fire And Security PLC,Environmental Services,R & M - Buildings (Within Service),3/22/2018,43125,125.00
Lancaster City Council,30UH,Agile Business Consortium Ltd,Management Team,Books & Periodicals,3/14/2018,mpc000101,15.00
Lancaster City Council,30UH,Agrigem Ltd,Environmental Services,Materials - General,3/15/2018,43007,39.65
Lancaster City Council,30UH,AJ Exotic  and Pet Supplies,Environmental Services,Equipment and Tools - General,1/30/2018,42241,116.64
Lancaster City Council,30UH,AKW,Health & Housing,Materials (Minor Adaptations),2/26/2018,spc002737,213.89
Lancaster City Council,30UH,AKW,Health & Housing,Materials (Minor Adaptations),2/26/2018,spc002738,210.93
Lancaster City Council,30UH,AKW,Health & Housing,Materials (Minor Adaptations),1/23/2018,spc002631,315.71
Lancaster City Council,30UH,Alliance,Resources,Materials For Resale,1/25/2018,ppc001189,21.67
Lancaster City Council,30UH,Alpha Engraving Limited,Environmental Services,R & M - General,1/30/2018,42227,38.92
Lancaster City Council,30UH,Alpha Engraving Limited,Environmental Services,R & M - General,2/28/2018,42644,129.14
Lancaster City Council,30UH,Alpha Engraving Limited,Environmental Services,R & M - General,3/21/2018,43089,37.64
Lancaster City Council,30UH,Alpinetrek.co.uk/PayPal,Health & Housing,Equipment and Tools - General,3/15/2018,bpc006074,32.40
Lancaster City Council,30UH,Amazon,Resources,Books & Periodicals,3/22/2018,ppc001291,15.50
Lancaster City Council,30UH,Amazon,Resources,Catering Provisions,3/26/2018,ppc001297,124.49
Lancaster City Council,30UH,Amazon,Health & Housing,Clothing & Uniforms,1/28/2018,bpc005962,49.59
Lancaster City Council,30UH,Amazon,Health & Housing,Corporate Safety,3/29/2018,spc002834,4.80
Lancaster City Council,30UH,Amazon,Governance,Corporate Training Budget,3/6/2018,lpc000635,13.99
Lancaster City Council,30UH,Amazon,Health & Housing,Equipment and Tools - General,1/26/2018,bpc005956,34.56
Lancaster City Council,30UH,Amazon,Health & Housing,Equipment and Tools - General,1/28/2018,bpc005964,26.78
Lancaster City Council,30UH,Amazon,Environmental Services,Equipment and Tools - General,3/6/2018,42848,114.45
Lancaster City Council,30UH,Amazon,Environmental Services,Equipment and Tools - General,3/6/2018,42852,22.78
Lancaster City Council,30UH,Amazon,Environmental Services,Equipment and Tools - General,3/22/2018,43124,24.78
Lancaster City Council,30UH,amazon,Health & Housing,Equipment and Tools - General,2/13/2018,spc002715,46.49
Lancaster City Council,30UH,Amazon,Health & Housing,Equipment and Tools - General,1/2/2018,spc002630,8.32
Lancaster City Council,30UH,Amazon,Health & Housing,Equipment and Tools - General,1/23/2018,spc002634,25.95
Lancaster City Council,30UH,Amazon,Health & Housing,Equipment and Tools - General,1/23/2018,spc002640,9.97
Lancaster City Council,30UH,Amazon,Health & Housing,Equipment and Tools - General,2/6/2018,spc002703,9.99
Lancaster City Council,30UH,Amazon,Health & Housing,Equipment and Tools - General,2/16/2018,spc002717,16.84
Lancaster City Council,30UH,Amazon,Health & Housing,Equipment and Tools - General,3/13/2018,spc002789,14.98
Lancaster City Council,30UH,Amazon,Health & Housing,Equipment and Tools - General,3/13/2018,spc002790,5.26
Lancaster City Council,30UH,Amazon,Health & Housing,Equipment and Tools - General,3/13/2018,spc002791,43.75
Lancaster City Council,30UH,Amazon,Health & Housing,Equipment and Tools - General,3/16/2018,spc002799,38.31
Lancaster City Council,30UH,Amazon,Health & Housing,Equipment and Tools - General,3/26/2018,spc002823,7.47
Lancaster City Council,30UH,Amazon,Health & Housing,Equipment and Tools - General,3/28/2018,spc002832,13.50
Lancaster City Council,30UH,Amazon,Health & Housing,Equipment and Tools - General,3/29/2018,spc002833,9.99
Lancaster City Council,30UH,Amazon,Resources,Equipment and Tools - General,1/23/2018,jpc001184,20.42
Lancaster City Council,30UH,Amazon,Resources,Equipment and Tools - General,2/28/2018,ppc001252,39.62
Lancaster City Council,30UH,Amazon,Health & Housing,Equipment Funded by Reserves,1/2/2018,hpc000656,23.97
Lancaster City Council,30UH,Amazon,Regeneration and Planning,Exhibitions,3/23/2018,43153,11.62
Lancaster City Council,30UH,Amazon,Resources,Infrastructure - Update & Maintenance,1/23/2018,jpc001185,7.99
Lancaster City Council,30UH,Amazon,Resources,Infrastructure - Update & Maintenance,1/29/2018,jpc001206,7.99
Lancaster City Council,30UH,Amazon,Resources,Infrastructure - Update & Maintenance,3/2/2018,jpc001226,7.99
Lancaster City Council,30UH,Amazon,Resources,Infrastructure - Update & Maintenance,3/2/2018,jpc001236,21.72
Lancaster City Council,30UH,Amazon,Resources,Infrastructure - Update & Maintenance,3/2/2018,jpc001237,4.52
Lancaster City Council,30UH,Amazon,Governance,IT Consumables,3/16/2018,dpc000620,22.25
Lancaster City Council,30UH,Amazon,Governance,IT Consumables,3/21/2018,dpc000621,27.08
Lancaster City Council,30UH,Amazon,Regeneration and Planning,Marketing,2/8/2018,npc002358,12.95
Lancaster City Council,30UH,Amazon,Environmental Services,Materials - General,1/26/2018,42153,17.25
Lancaster City Council,30UH,Amazon,Health & Housing,Materials - General,2/22/2018,spc002731,30.28
Lancaster City Council,30UH,Amazon,Health & Housing,Materials - General,3/2/2018,spc002752,28.01
Lancaster City Council,30UH,Amazon,Resources,Materials - General,1/31/2018,jpc001209,20.87
Lancaster City Council,30UH,Amazon,Environmental Services,Mobile Telephones,3/28/2018,43231,15.98
Lancaster City Council,30UH,Amazon,Resources,Mobile Telephones,1/23/2018,jpc001182,21.66
Lancaster City Council,30UH,Amazon,Resources,Mobile Telephones,1/29/2018,jpc001203,21.65
Lancaster City Council,30UH,Amazon,Resources,Mobile Telephones,1/29/2018,jpc001205,21.78
Lancaster City Council,30UH,Amazon,Resources,Mobile Telephones,1/31/2018,jpc001207,20.87
Lancaster City Council,30UH,Amazon,Resources,Mobile Telephones,1/31/2018,jpc001208,20.87
Lancaster City Council,30UH,Amazon,Resources,Mobile Telephones,3/2/2018,jpc001227,19.27
Lancaster City Council,30UH,Amazon,Resources,Mobile Telephones,3/2/2018,jpc001228,43.57
Lancaster City Council,30UH,Amazon,Resources,Mobile Telephones,3/2/2018,jpc001231,195.87
Lancaster City Council,30UH,Amazon,Resources,Mobile Telephones,3/16/2018,jpc001249,19.16
Lancaster City Council,30UH,Amazon,Resources,Mobile Telephones,3/16/2018,jpc001250,19.16
Lancaster City Council,30UH,Amazon,Environmental Services,Office Equipment,2/6/2018,42402,14.41
Lancaster City Council,30UH,Amazon,Resources,Office Equipment,3/2/2018,jpc001229,437.47
Lancaster City Council,30UH,Amazon,Resources,Office Equipment,3/21/2018,jpc001254,77.49
Lancaster City Council,30UH,Amazon,Resources,Office Equipment,2/9/2018,ppc001229,145.10
Lancaster City Council,30UH,Amazon,Regeneration and Planning,Office Equipment,2/27/2018,npc002395,130.82
Lancaster City Council,30UH,Amazon,Health & Housing,Printing & Stationery,3/5/2018,hpc000705,171.64
Lancaster City Council,30UH,Amazon,Health & Housing,Printing & Stationery,2/20/2018,hpc000691,120.20
Lancaster City Council,30UH,Amazon,Health & Housing,Printing & Stationery,3/5/2018,hpc000702,23.93
Lancaster City Council,30UH,Amazon,Regeneration and Planning,Printing & Stationery,2/8/2018,42439,3.62
Lancaster City Council,30UH,Amazon,Environmental Services,Printing & Stationery,3/6/2018,42851,33.57
Lancaster City Council,30UH,Amazon,Resources,Printing & Stationery,3/2/2018,fpc000298,3.78
Lancaster City Council,30UH,Amazon,Resources,Printing & Stationery,3/21/2018,fpc000302,19.70
Lancaster City Council,30UH,Amazon,Health & Housing,Printing & Stationery,2/5/2018,spc002702,7.81
Lancaster City Council,30UH,Amazon,Health & Housing,Printing & Stationery,3/5/2018,spc002767,47.45
Lancaster City Council,30UH,Amazon,Health & Housing,Printing & Stationery,3/13/2018,spc002788,2.13
Lancaster City Council,30UH,Amazon,Regeneration and Planning,Printing & Stationery,2/20/2018,npc002372,12.69
Lancaster City Council,30UH,Amazon,Resources,Purchase Of Equipment,1/23/2018,jpc001181,44.08
Lancaster City Council,30UH,Amazon,Resources,Purchase Of Equipment,1/23/2018,jpc001183,64.70
Lancaster City Council,30UH,Amazon,Resources,Purchase Of Equipment,1/29/2018,jpc001200,117.98
Lancaster City Council,30UH,Amazon,Resources,Purchase Of Equipment,1/29/2018,jpc001201,33.32
Lancaster City Council,30UH,Amazon,Resources,Purchase Of Equipment,1/29/2018,jpc001204,333.35
Lancaster City Council,30UH,Amazon,Resources,Purchase Of Equipment,3/2/2018,jpc001230,391.73
Lancaster City Council,30UH,Amazon,Resources,Purchase Of Equipment,3/2/2018,jpc001232,91.33
Lancaster City Council,30UH,Amazon,Resources,Purchase Of Equipment,3/2/2018,jpc001233,88.93
Lancaster City Council,30UH,Amazon,Resources,Purchase Of Equipment,3/2/2018,jpc001234,58.12
Lancaster City Council,30UH,Amazon,Resources,Purchase Of Equipment,3/2/2018,jpc001235,277.67
Lancaster City Council,30UH,Amazon,Resources,Purchase Of Equipment,3/16/2018,jpc001248,35.60
Lancaster City Council,30UH,Amazon,Health & Housing,Services - General,1/23/2018,spc002658,15.39
Lancaster City Council,30UH,Amazon,Regeneration and Planning,Services - General,2/20/2018,npc002372,7.47
Lancaster City Council,30UH,Amazon,Resources,Software - XN,1/31/2018,jpc001210,99.87
Lancaster City Council,30UH,Amazon,Resources,Sundry Expenses,2/7/2018,ppc001226,60.87
Lancaster City Council,30UH,Amazon,Health & Housing,Tenants Participation,2/7/2018,hpc000675,8.69
Lancaster City Council,30UH,Amazon,Resources,Books & Periodicals,2/1/2018,jpc001216,18.23
Lancaster City Council,30UH,Amazon,Resources,Equipment and Tools - General,1/31/2018,ppc001221,14.14
Lancaster City Council,30UH,Amazon,Health & Housing,Equipment and Tools - General,1/29/2018,bpc005967,5.32
Lancaster City Council,30UH,Amazon,Health & Housing,Equipment and Tools - General,3/2/2018,bpc006054,56.65
Lancaster City Council,30UH,Amazon,Resources,Equipment and Tools - General,1/25/2018,ppc001177,6.66
Lancaster City Council,30UH,Amazon,Resources,Equipment and Tools - General,3/6/2018,ppc001257,2.83
Lancaster City Council,30UH,Amazon,Resources,Equipment and Tools - General,3/6/2018,ppc001260,51.95
Lancaster City Council,30UH,Amazon,Health & Housing,Printing & Stationery,1/29/2018,bpc005968,14.25
Lancaster City Council,30UH,Amazon,Health & Housing,Printing & Stationery,1/29/2018,bpc005974,16.29
Lancaster City Council,30UH,Amazon,Health & Housing,Printing & Stationery,1/29/2018,bpc005975,2.83
Lancaster City Council,30UH,Amazon,Health & Housing,Printing & Stationery,1/29/2018,bpc005976,2.99
Lancaster City Council,30UH,Amazon,Health & Housing,Printing & Stationery,1/29/2018,bpc005979,12.98
Lancaster City Council,30UH,Amazon,Health & Housing,Printing & Stationery,1/30/2018,bpc005982,16.66
Lancaster City Council,30UH,Amazon,Health & Housing,Printing & Stationery,1/30/2018,bpc005984,29.82
Lancaster City Council,30UH,Amazon,Health & Housing,Printing & Stationery,3/21/2018,bpc006081,23.67
Lancaster City Council,30UH,Amazon,Health & Housing,Printing & Stationery,3/21/2018,bpc006083,16.34
Lancaster City Council,30UH,Amazon,Health & Housing,Printing & Stationery,3/21/2018,bpc006084,2.32
Lancaster City Council,30UH,Amazon,Health & Housing,Printing & Stationery,3/21/2018,bpc006085,9.58
Lancaster City Council,30UH,Amazon,Health & Housing,Printing & Stationery,3/21/2018,bpc006086,12.54
Lancaster City Council,30UH,Amazon,Health & Housing,Printing & Stationery,3/29/2018,bpc006112,614.89
Lancaster City Council,30UH,Amazon,Health & Housing,Printing & Stationery,1/29/2018,bpc005966,7.49
Lancaster City Council,30UH,Amazon,Health & Housing,Printing & Stationery,1/30/2018,bpc005985,16.25
Lancaster City Council,30UH,Animoto,Regeneration and Planning,Internet Provision,3/1/2018,42741,15.99
Lancaster City Council,30UH,APPLIANCE DIRECT,Health & Housing,Equipment Funded by Reserves,1/2/2018,hpc000658,170.82
Lancaster City Council,30UH,APPLIANCE DIRECT,Health & Housing,Equipment Funded by Reserves,1/2/2018,hpc000659,145.82
Lancaster City Council,30UH,APPLIANCE DIRECT,Health & Housing,Equipment Funded by Reserves,2/20/2018,hpc000685,137.49
Lancaster City Council,30UH,APPLIANCE DIRECT,Health & Housing,Equipment Funded by Reserves,2/20/2018,hpc000686,337.48
Lancaster City Council,30UH,APPLIANCE DIRECT,Health & Housing,Miscellaneous Expenditure,1/2/2018,hpc000655,179.16
Lancaster City Council,30UH,APPS,Environmental Services,Clothing & Uniforms,2/27/2018,42638,347.15
Lancaster City Council,30UH,APPS,Environmental Services,Clothing & Uniforms,3/22/2018,43133,428.89
Lancaster City Council,30UH,Aquarius Solutions,Environmental Services,Equipment and Tools - General,2/20/2018,42512,606.00
Lancaster City Council,30UH,Argos,Health & Housing,Equipment and Tools - General,3/2/2018,spc002748,78.27
Lancaster City Council,30UH,Argos,Health & Housing,Equipment and Tools - General,1/26/2018,spc002678,118.28
Lancaster City Council,30UH,Argos,Resources,Equipment and Tools - General,2/22/2018,ppc001234,569.92
Lancaster City Council,30UH,Argos,Health & Housing,Flexible Homelessness Support,1/23/2018,spc002657,912.24
Lancaster City Council,30UH,Argos,Health & Housing,Homelessness Priority Need Order,2/19/2018,spc002718,15.96
Lancaster City Council,30UH,Argos,Regeneration and Planning,Marketing,2/8/2018,npc002356,8.98
Lancaster City Council,30UH,Argos,Regeneration and Planning,Marketing,2/8/2018,npc002357,34.97
Lancaster City Council,30UH,Argos,Health & Housing,R & M - Buildings,1/3/2018,hpc000666,54.16
Lancaster City Council,30UH,Arriva,Regeneration and Planning,Services - Consultants,1/25/2018,npc002319,64.80
Lancaster City Council,30UH,Arriva,Regeneration and Planning,Use Of Public Tpt - Officers,2/2/2018,npc002342,72.90
Lancaster City Council,30UH,Arriva,Regeneration and Planning,Use Of Public Tpt - Officers,2/26/2018,npc002394,22.30
Lancaster City Council,30UH,Arriva,Regeneration and Planning,Use Of Public Tpt - Officers,3/23/2018,npc002459,31.50
Lancaster City Council,30UH,asa,Health & Housing,Printing & Stationery,2/19/2018,bpc006020,242.00
Lancaster City Council,30UH,asa,Health & Housing,Printing & Stationery,3/22/2018,bpc006087,813.00
Lancaster City Council,30UH,Asda,Health & Housing,Equipment and Tools - General,1/28/2018,bpc005957,15.58
Lancaster City Council,30UH,Asda,Health & Housing,Equipment and Tools - General,2/25/2018,bpc006033,16.67
Lancaster City Council,30UH,Asda,Health & Housing,Equipment and Tools - General,1/25/2018,bpc005953,10.86
Lancaster City Council,30UH,Asda,Health & Housing,Equipment and Tools - General,3/2/2018,spc002751,31.08
Lancaster City Council,30UH,Asda,Health & Housing,Equipment and Tools - General,1/26/2018,spc002672,35.02
Lancaster City Council,30UH,Asda,Health & Housing,Equipment and Tools - General,1/26/2018,spc002673,12.50
Lancaster City Council,30UH,Asda,Health & Housing,Equipment and Tools - General,1/26/2018,spc002674,35.47
Lancaster City Council,30UH,Asda,Health & Housing,Equipment and Tools - General,1/26/2018,spc002675,43.67
Lancaster City Council,30UH,Asda,Health & Housing,Equipment and Tools - General,1/26/2018,spc002676,57.59
Lancaster City Council,30UH,Asda,Health & Housing,Equipment and Tools - General,3/15/2018,spc002798,44.82
Lancaster City Council,30UH,Asda,Health & Housing,Equipment and Tools - General,3/19/2018,spc002804,58.33
Lancaster City Council,30UH,Asda,Health & Housing,Equipment and Tools - General,3/20/2018,spc002808,5.00
Lancaster City Council,30UH,Asda,Health & Housing,Materials - General,2/25/2018,bpc006029,9.62
Lancaster City Council,30UH,Asda,Health & Housing,Materials - General,2/25/2018,bpc006030,8.34
Lancaster City Council,30UH,Asda,Health & Housing,Materials - General,2/25/2018,bpc006031,7.41
Lancaster City Council,30UH,Asda,Health & Housing,Materials - General,3/6/2018,spc002775,24.49
Lancaster City Council,30UH,Asda,Health & Housing,Materials - General,3/2/2018,spc002750,39.97
Lancaster City Council,30UH,Asda,Health & Housing,Materials - General,3/26/2018,spc002822,5.83
Lancaster City Council,30UH,Asda,Health & Housing,Materials - General,3/2/2018,spc002753,68.50
Lancaster City Council,30UH,Asda,Health & Housing,Materials - General,3/19/2018,spc002805,57.87
Lancaster City Council,30UH,Asda,Health & Housing,Materials For Resale,3/27/2018,bpc006102,85.36
Lancaster City Council,30UH,Asda,Health & Housing,Materials For Resale,1/25/2018,bpc005933,138.75
Lancaster City Council,30UH,Asda,Health & Housing,Materials For Resale,3/23/2018,bpc006090,4.07
Lancaster City Council,30UH,Asda,Health & Housing,Materials For Resale,3/27/2018,bpc006101,23.23
Lancaster City Council,30UH,Asda,Health & Housing,Materials For Resale,1/25/2018,bpc005938,24.20
Lancaster City Council,30UH,Asda,Health & Housing,Materials For Resale,1/25/2018,bpc005939,3.25
Lancaster City Council,30UH,Asda,Health & Housing,Materials For Resale,1/25/2018,bpc005940,88.80
Lancaster City Council,30UH,Asda,Health & Housing,Materials For Resale,1/25/2018,bpc005941,67.50
Lancaster City Council,30UH,Asda,Health & Housing,Materials For Resale,1/25/2018,bpc005942,11.18
Lancaster City Council,30UH,Asda,Health & Housing,Materials For Resale,1/25/2018,bpc005943,30.70
Lancaster City Council,30UH,Asda,Health & Housing,Materials For Resale,1/25/2018,bpc005944,2.97
Lancaster City Council,30UH,Asda,Health & Housing,Materials For Resale,1/25/2018,bpc005945,103.40
Lancaster City Council,30UH,Asda,Health & Housing,Materials For Resale,2/12/2018,bpc006007,124.61
Lancaster City Council,30UH,Asda,Health & Housing,Materials For Resale,2/21/2018,bpc006021,127.95
Lancaster City Council,30UH,Asda,Health & Housing,Materials For Resale,3/4/2018,bpc006057,81.98
Lancaster City Council,30UH,Asda,Health & Housing,Other Cleaning,3/29/2018,bpc006114,3.00
Lancaster City Council,30UH,Asda,Health & Housing,R & M - Buildings,2/25/2018,bpc006024,25.79
Lancaster City Council,30UH,Asda,Health & Housing,R & M - Buildings,3/2/2018,spc002754,22.13
Lancaster City Council,30UH,Asda,Health & Housing,Subsistence,1/31/2018,spc002693,2.62
Lancaster City Council,30UH,Asda,Health & Housing,Subsistence,1/31/2018,spc002694,6.01
Lancaster City Council,30UH,Asda,Health & Housing,Tenants Participation,1/3/2018,hpc000664,35.83
Lancaster City Council,30UH,Asda,Health & Housing,Tenants Participation,3/5/2018,hpc000699,14.22
Lancaster City Council,30UH,Ashwood Gifts Ltd,Environmental Services,Materials For Resale,2/27/2018,42640,78.24
Lancaster City Council,30UH,B and Q,Resources,Equipment and Tools - General,1/16/2018,ppc001194,4.24
Lancaster City Council,30UH,B and Q,Health & Housing,Marketing & Promotion,3/5/2018,spc002758,6.55
Lancaster City Council,30UH,B and Q,Resources,R & M - Buildings,3/5/2018,ppc001254,18.37
Lancaster City Council,30UH,B and Q,Resources,R & M - Buildings,1/31/2018,ppc001199,17.22
Lancaster City Council,30UH,B&M,Environmental Services,Materials - General,1/31/2018,42673,2.48
Lancaster City Council,30UH,Ball Colegrave Ltd,Environmental Services,Materials - General,2/9/2018,42443,3504.15
Lancaster City Council,30UH,Bannister Hall Nursery,Environmental Services,Equipment and Tools - General,3/22/2018,43130,104.00
Lancaster City Council,30UH,Bannister Hall Nursery,Environmental Services,Grounds Maintenance - Other,3/22/2018,43122,94.00
Lancaster City Council,30UH,Bannister Hall Nursery,Environmental Services,Materials - General,2/23/2018,42578,75.00
Lancaster City Council,30UH,Bannister Hall Nursery,Environmental Services,R & M - General,2/22/2018,42575,105.00
Lancaster City Council,30UH,Barriers Direct,Environmental Services,Routine Maintenance,2/26/2018,42615,98.56
Lancaster City Council,30UH,Barriers Direct,Environmental Services,Routine Maintenance,3/5/2018,42764,96.87
Lancaster City Council,30UH,BASIS,Health & Housing,Equipment and Tools - General,1/23/2018,spc002650,200.00
Lancaster City Council,30UH,battery force,Health & Housing,Equipment and Tools - General,1/23/2018,bpc005928,44.28
Lancaster City Council,30UH,Battery Force/PayPal,Health & Housing,Equipment and Tools - General,2/19/2018,bpc006019,36.50
Lancaster City Council,30UH,"Bay Travel, Euston Road, Morec",Health & Housing,Service Training Budget,3/7/2018,spc002777,162.24
Lancaster City Council,30UH,Bay Vets Ltd,Environmental Services,Services - Vets,3/6/2018,42839,125.18
Lancaster City Council,30UH,Bedknobs B&B,Health & Housing,Service Training Budget,3/21/2018,spc002813,170.00
Lancaster City Council,30UH,Best western - Lothersdale Hot,Regeneration and Planning,Exhibitions & Events - Expenses,3/16/2018,npc002433,873.33
Lancaster City Council,30UH,BFI,Regeneration and Planning,Marketing,2/7/2018,npc002349,209.00
Lancaster City Council,30UH,Big Build Technology,Regeneration and Planning,Office Equipment,3/20/2018,npc002454,8.29
Lancaster City Council,30UH,Bilcourt T/A Superlec,Health & Housing,Equipment and Tools - General,3/27/2018,bpc006104,9.89
Lancaster City Council,30UH,BJM Mobility,Health & Housing,Syrian Ressetlement Programme,1/5/2018,spc002632,60.00
Lancaster City Council,30UH,blackburn safetywear,Regeneration and Planning,Equipment and Tools - General,2/7/2018,npc002352,180.00
Lancaster City Council,30UH,Bluetree Design and Print Ltd,Regeneration and Planning,Printing & Stationery,1/23/2018,41964,66.99
Lancaster City Council,30UH,Booker Ltd,Health & Housing,Equipment and Tools - General,1/25/2018,bpc005934,64.98
Lancaster City Council,30UH,Booker Ltd,Health & Housing,Materials For Resale,2/12/2018,bpc006009,13.94
Lancaster City Council,30UH,Booker Ltd,Health & Housing,Materials For Resale,1/25/2018,bpc005935,572.47
Lancaster City Council,30UH,Booker Ltd,Health & Housing,Materials For Resale,1/25/2018,bpc005947,31.96
Lancaster City Council,30UH,Booker Ltd,Health & Housing,Materials For Resale,1/25/2018,bpc005948,31.77
Lancaster City Council,30UH,Booker Ltd,Health & Housing,Materials For Resale,1/25/2018,bpc005949,157.40
Lancaster City Council,30UH,Booker Ltd,Health & Housing,Materials For Resale,1/25/2018,bpc005950,150.59
Lancaster City Council,30UH,Booker Ltd,Health & Housing,Materials For Resale,1/25/2018,bpc005951,32.97
Lancaster City Council,30UH,Booker Ltd,Health & Housing,Materials For Resale,1/25/2018,bpc005952,19.14
Lancaster City Council,30UH,Booker Ltd,Health & Housing,Materials For Resale,2/12/2018,bpc006008,88.56
Lancaster City Council,30UH,Booker Ltd,Health & Housing,Materials For Resale,2/12/2018,bpc006010,579.27
Lancaster City Council,30UH,Booker Ltd,Health & Housing,Materials For Resale,2/22/2018,bpc006022,654.42
Lancaster City Council,30UH,Booker Ltd,Health & Housing,Materials For Resale,2/28/2018,bpc006037,7.99
Lancaster City Council,30UH,Booker Ltd,Health & Housing,Materials For Resale,3/4/2018,bpc006056,19.47
Lancaster City Council,30UH,Booker Ltd,Health & Housing,Materials For Resale,3/4/2018,bpc006058,76.60
Lancaster City Council,30UH,Booker Ltd,Health & Housing,Materials For Resale,3/4/2018,bpc006059,5.96
Lancaster City Council,30UH,Booker Ltd,Environmental Services,Materials For Resale,1/26/2018,42159,259.15
Lancaster City Council,30UH,Booker Ltd,Health & Housing,Materials For Resale,1/23/2018,bpc005929,50.70
Lancaster City Council,30UH,Booker Ltd,Health & Housing,Materials For Resale,1/28/2018,bpc005958,12.99
Lancaster City Council,30UH,Booker Ltd,Health & Housing,Materials For Resale,3/19/2018,bpc006076,81.16
Lancaster City Council,30UH,Booker lTd,Environmental Services,Materials For Resale,3/29/2018,43265,290.33
Lancaster City Council,30UH,Booker Ltd,Environmental Services,Materials For Resale,1/30/2018,42243,172.09
Lancaster City Council,30UH,Booker Ltd,Environmental Services,Materials For Resale,2/27/2018,42642,172.66
Lancaster City Council,30UH,Booker Ltd,Environmental Services,Materials For Resale,2/27/2018,42643,336.02
Lancaster City Council,30UH,Booker Ltd,Environmental Services,Materials For Resale,3/6/2018,42836,94.04
Lancaster City Council,30UH,Booker Ltd,Environmental Services,Materials For Resale,3/6/2018,42837,277.77
Lancaster City Council,30UH,Booker Ltd,Environmental Services,Materials For Resale,3/6/2018,42838,41.52
Lancaster City Council,30UH,Booker Ltd,Environmental Services,Materials For Resale,3/22/2018,43126,120.72
Lancaster City Council,30UH,Booker Ltd,Environmental Services,Materials For Resale,3/22/2018,43127,244.87
Lancaster City Council,30UH,Booker Ltd,Environmental Services,Materials For Resale,3/29/2018,43264,214.32
Lancaster City Council,30UH,Booker Ltd,Resources,Materials For Resale,1/25/2018,ppc001178,311.84
Lancaster City Council,30UH,Booker Ltd,Resources,Materials For Resale,1/25/2018,ppc001179,333.19
Lancaster City Council,30UH,Booker Ltd,Resources,Materials For Resale,1/25/2018,ppc001181,18.98
Lancaster City Council,30UH,Booker Ltd,Resources,Materials For Resale,2/1/2018,ppc001214,12.48
Lancaster City Council,30UH,Booker Ltd,Resources,Materials For Resale,2/1/2018,ppc001215,157.54
Lancaster City Council,30UH,Booker Ltd,Resources,Materials For Resale,2/1/2018,ppc001216,17.07
Lancaster City Council,30UH,Booker Ltd,Resources,Materials For Resale,2/1/2018,ppc001217,70.70
Lancaster City Council,30UH,Booker Ltd,Resources,Materials For Resale,3/7/2018,ppc001269,108.23
Lancaster City Council,30UH,Booker Ltd,Resources,Materials For Resale,3/7/2018,ppc001273,2.08
Lancaster City Council,30UH,Booker Ltd,Resources,Materials For Resale,3/7/2018,ppc001274,132.24
Lancaster City Council,30UH,Booker Ltd,Resources,Materials For Resale,3/7/2018,ppc001275,14.32
Lancaster City Council,30UH,Booker Ltd,Regeneration and Planning,Bar Supplies,2/20/2018,npc002370,239.31
Lancaster City Council,30UH,Booker Ltd,Health & Housing,Equipment and Tools - General,2/2/2018,bpc005999,42.87
Lancaster City Council,30UH,Booker Ltd,Health & Housing,Materials For Resale,2/2/2018,bpc005999,80.42
Lancaster City Council,30UH,Booking.com,Health & Housing,Service Training Budget,3/29/2018,spc002837,75.00
Lancaster City Council,30UH,Booths,Regeneration and Planning,AONB Executive Support,1/23/2018,npc002301,29.25
Lancaster City Council,30UH,Booths,Regeneration and Planning,Other Cleaning,1/23/2018,npc002302,16.96
Lancaster City Council,30UH,Booths,Environmental Services,Exhibitions & Events,1/31/2018,43279,24.00
Lancaster City Council,30UH,Boots UK,Resources,Printing & Stationery,2/2/2018,fpc000291,6.58
Lancaster City Council,30UH,Border Aggregates,Environmental Services,Materials - General,2/2/2018,42480,387.30
Lancaster City Council,30UH,Border Aggregates,Environmental Services,Materials - General,2/13/2018,42474,197.25
Lancaster City Council,30UH,Border Aggregates,Environmental Services,Materials - General,2/14/2018,42481,516.40
Lancaster City Council,30UH,Border Aggregates,Environmental Services,R & M - General,1/23/2018,42005,242.70
Lancaster City Council,30UH,Borough Lancaster,Health & Housing,Hospitality,3/2/2018,bpc006049,64.80
Lancaster City Council,30UH,Bowling Green Service Station,Environmental Services,Fuel Oil,1/30/2018,42236,48.22
Lancaster City Council,30UH,Bowling Green Service Station,Health & Housing,Tenants Participation,3/20/2018,hpc000710,24.68
Lancaster City Council,30UH,BOWMONK LIMITED,Environmental Services,Other Fixed Plant,2/1/2018,42346,74.17
Lancaster City Council,30UH,BPA,Environmental Services,Subscriptions,2/7/2018,42417,888.00
Lancaster City Council,30UH,Bradshaws farm shop,Resources,Materials For Resale,2/1/2018,ppc001209,15.80
Lancaster City Council,30UH,Briggs,Regeneration and Planning,Clothing & Uniforms,2/20/2018,npc002371,110.30
Lancaster City Council,30UH,British Athletics,Health & Housing,Services - General,3/29/2018,bpc006117,44.00
Lancaster City Council,30UH,British Gymnastics,Health & Housing,Miscellaneous Licences,3/14/2018,bpc006070,91.75
Lancaster City Council,30UH,Broadoak Home & Garden Ltd,Environmental Services,Materials - General,3/20/2018,43087,55.83
Lancaster City Council,30UH,Broadoak Home & Garden Ltd,Environmental Services,Materials - General,3/28/2018,43220,55.83
Lancaster City Council,30UH,Broderick Group / WorldPay,Health & Housing,Materials For Resale,3/26/2018,bpc006093,11.44
Lancaster City Council,30UH,BT,Resources,Contract Maintenance,1/5/2018,ppc001172,91.80
Lancaster City Council,30UH,BT,Resources,Telephones,1/4/2018,ppc001171,56.31
Lancaster City Council,30UH,BT,Resources,Telephones,1/4/2018,ppc001173,55.89
Lancaster City Council,30UH,BT,Regeneration and Planning,Telephones,1/23/2018,npc002283,107.50
Lancaster City Council,30UH,BT,Regeneration and Planning,Telephones,2/12/2018,npc002373,374.26
Lancaster City Council,30UH,BT,Regeneration and Planning,Telephones,2/12/2018,npc002374,-40.00
Lancaster City Council,30UH,Bulloughs Londis,Regeneration and Planning,Printing & Stationery,1/23/2018,npc002278,4.16
Lancaster City Council,30UH,Burger King Pasty shop,Health & Housing,Marketing,3/2/2018,bpc006046,11.64
Lancaster City Council,30UH,Burnley Borough Council,Resources,Capital Payments To Contractors,3/23/2018,ppc001292,1000.00
Lancaster City Council,30UH,Burnley Borough Council,Regeneration and Planning,Marketing,3/7/2018,npc002411,160.00
Lancaster City Council,30UH,Burnley Borough Council,Regeneration and Planning,Marketing,3/7/2018,npc002412,250.00
Lancaster City Council,30UH,Burnley Borough Council,Regeneration and Planning,Marketing,3/7/2018,npc002413,40.00
Lancaster City Council,30UH,Burnley Borough Council,Regeneration and Planning,Marketing,3/14/2018,npc002427,500.00
Lancaster City Council,30UH,Burnley Borough Council,Regeneration and Planning,Marketing,3/16/2018,npc002434,600.00
Lancaster City Council,30UH,Burnley Borough Council,Regeneration and Planning,Marketing,3/16/2018,npc002435,250.00
Lancaster City Council,30UH,Burnley Borough Council,Regeneration and Planning,Marketing,3/16/2018,npc002436,2640.00
Lancaster City Council,30UH,Burnley Borough Council,Regeneration and Planning,Marketing,3/20/2018,npc002443,200.00
Lancaster City Council,30UH,Burnley Borough Council,Regeneration and Planning,Marketing,3/20/2018,npc002444,2664.75
Lancaster City Council,30UH,Burnley Borough Council,Regeneration and Planning,Marketing,3/20/2018,npc002455,80.00
Lancaster City Council,30UH,Burnley Borough Council,Regeneration and Planning,Marketing,3/26/2018,npc002462,40.00
Lancaster City Council,30UH,Burnley Borough Council,Regeneration and Planning,Marketing,3/29/2018,npc002475,40.00
Lancaster City Council,30UH,Burnley Borough Council,Management Team,Printing & Stationery,3/16/2018,mpc000103,640.00
Lancaster City Council,30UH,C Brewer & Sons Ltd,Environmental Services,R & M - Buildings (Within Service),3/15/2018,43018,70.92
Lancaster City Council,30UH,C T Hayton Ltd,Regeneration and Planning,Equipment and Tools - General,2/26/2018,npc002382,31.00
Lancaster City Council,30UH,Canva,Regeneration and Planning,Miscellaneous Advertising,2/1/2018,42320,0.76
Lancaster City Council,30UH,Canva,Regeneration and Planning,Miscellaneous Advertising,2/1/2018,42321,7.67
Lancaster City Council,30UH,Canva,Health & Housing,Software Purchase\Licences,2/2/2018,bpc005994,89.01
Lancaster City Council,30UH,Car Specialists Limited,Environmental Services,Repair & Mtce Of Vehicles,1/5/2018,42059,160.00
Lancaster City Council,30UH,Carlisle Glass Limited,Environmental Services,Equipment and Tools - General,1/31/2018,42388,6.00
Lancaster City Council,30UH,Carlisle Glass Limited,Environmental Services,Equipment and Tools - General,1/31/2018,42389,119.09
Lancaster City Council,30UH,Carlisle Glass Limited,Environmental Services,Equipment and Tools - General,3/6/2018,42884,27.85
Lancaster City Council,30UH,Carlisle Glass Limited,Environmental Services,Equipment and Tools - General,3/6/2018,42885,35.71
Lancaster City Council,30UH,Carlisle Glass Limited,Environmental Services,Materials - General,3/6/2018,42888,6.75
Lancaster City Council,30UH,Carlisle Glass Limited,Environmental Services,Equipment and Tools - General,1/5/2018,42071,50.00
Lancaster City Council,30UH,Carlisle Glass Limited,Environmental Services,Equipment and Tools - General,1/5/2018,42072,273.53
Lancaster City Council,30UH,Carlisle Glass Limited,Environmental Services,Equipment and Tools - General,1/25/2018,42081,0.02
Lancaster City Council,30UH,Carlisle Glass Limited,Environmental Services,R & M - Buildings,1/25/2018,42080,24.00
Lancaster City Council,30UH,Catering Partnerships Ltd,Health & Housing,R & M - Buildings (Within Service),1/29/2018,bpc005978,66.87
Lancaster City Council,30UH,CEF Electricals,Regeneration and Planning,R & M - Sea & River / Promenade,2/6/2018,npc002348,5.69
Lancaster City Council,30UH,Chamber of commerce,Health & Housing,Subscriptions,2/23/2018,spc002734,70.00
Lancaster City Council,30UH,Chartered Institute Of Env Hea,Health & Housing,Service Training Budget,3/8/2018,spc002782,189.00
Lancaster City Council,30UH,Choice Stationery Supplies,Health & Housing,Printing & Stationery,3/13/2018,spc002792,14.72
Lancaster City Council,30UH,Chris Bowers,Health & Housing,R & M - Environmental Works,1/29/2018,hpc000669,7.29
Lancaster City Council,30UH,Chris Bowers,Health & Housing,R & M - Environmental Works,1/3/2018,hpc000662,122.96
Lancaster City Council,30UH,Chrysalis Promotions/WorldPay,Health & Housing,Service Training Budget,2/15/2018,bpc006015,45.83
Lancaster City Council,30UH,CILEX,Governance,Service Training Budget,1/23/2018,lpc000616,660.00
Lancaster City Council,30UH,Cipfa,Resources,Conferences & Seminars,1/24/2018,fpc000285,195.00
Lancaster City Council,30UH,Cipfa,Resources,Professional Fees Etc,2/8/2018,fpc000294,310.00
Lancaster City Council,30UH,Cipfa,Resources,Professional Fees Etc,2/8/2018,fpc000295,310.00
Lancaster City Council,30UH,"CJ Papers, Lancaster",Resources,Equipment and Tools - General,3/7/2018,ppc001277,106.29
Lancaster City Council,30UH,CLARIS HOUSEWARES,Health & Housing,Printing & Stationery,2/20/2018,hpc000694,10.82
Lancaster City Council,30UH,Classic Engravings,Regeneration and Planning,R & M - Sea & River / Promenade,3/5/2018,npc002399,207.50
Lancaster City Council,30UH,Classic Engravings,Regeneration and Planning,R & M - Sea & River / Promenade,3/13/2018,npc002422,39.17
Lancaster City Council,30UH,cnd trading,Health & Housing,Materials (Minor Adaptations),1/23/2018,spc002639,20.50
Lancaster City Council,30UH,Coffeecups.co.uk,Resources,Equipment and Tools - General,1/25/2018,ppc001192,63.75
Lancaster City Council,30UH,COIR MATS,Environmental Services,Contracted Services,2/1/2018,42349,25.78
Lancaster City Council,30UH,Coles Hardware,Health & Housing,Materials (Minor Adaptations),2/19/2018,spc002720,25.00
Lancaster City Council,30UH,Comms Express,Resources,Infrastructure - Update & Maintenance,2/1/2018,jpc001213,86.46
Lancaster City Council,30UH,Comms Express,Resources,Infrastructure - Update & Maintenance,3/6/2018,jpc001239,24.50
Lancaster City Council,30UH,Coop,Health & Housing,Materials - General,1/30/2018,bpc005988,5.56
Lancaster City Council,30UH,Co-op Electrical,Resources,Equipment and Tools - General,3/1/2018,ppc001253,530.00
Lancaster City Council,30UH,CO-OP ENERGY,Health & Housing,Electricity,2/20/2018,hpc000688,6.30
Lancaster City Council,30UH,CO-OP ENERGY,Health & Housing,Electricity,2/20/2018,hpc000689,6.30
Lancaster City Council,30UH,Cooper & Co,Health & Housing,Service Training Budget,3/5/2018,spc002772,275.00
Lancaster City Council,30UH,Cornthwaite Farm Machinery,Environmental Services,Equipment and Tools - General,3/15/2018,43009,681.75
Lancaster City Council,30UH,Cornthwaite Farm Machinery,Environmental Services,Repair & Mtce Of Vehicles,2/27/2018,42639,159.78
Lancaster City Council,30UH,Countrystyle Meats Farmshop,Resources,Materials For Resale,3/7/2018,ppc001268,10.42
Lancaster City Council,30UH,Countrystyle Meats Farmshop,Environmental Services,Materials For Resale,2/27/2018,42632,1245.39
Lancaster City Council,30UH,Cowling and Wilcox,Regeneration and Planning,Services - Consultants,2/23/2018,npc002375,12.74
Lancaster City Council,30UH,createsend.com,Regeneration and Planning,Marketing,2/7/2018,npc002350,21.90
Lancaster City Council,30UH,Creative Solutions,Environmental Services,Equipment and Tools - General,3/22/2018,43134,69.55
Lancaster City Council,30UH,Cross common nursery,Environmental Services,Grounds Maintenance - Other,3/15/2018,43001,193.71
Lancaster City Council,30UH,Cross common nursery,Environmental Services,Grounds Maintenance - Other,3/29/2018,43251,218.50
Lancaster City Council,30UH,Crucial,Resources,Materials - General,1/29/2018,jpc001193,223.98
Lancaster City Council,30UH,Crucial,Resources,Services - Consultants,1/2/2018,jpc001175,115.99
Lancaster City Council,30UH,Currys on Line,Resources,Equipment and Tools - General,2/22/2018,ppc001244,58.28
Lancaster City Council,30UH,Dalton Square Florist ,Resources,Exhibitions & Events,1/25/2018,ppc001175,5.23
Lancaster City Council,30UH,DARWENS CARPETS,Health & Housing,Anti-Social Behaviour,2/20/2018,hpc000690,405.00
Lancaster City Council,30UH,David Willan Quality Fresh Foods,Environmental Services,Materials For Resale,1/23/2018,41970,612.27
Lancaster City Council,30UH,David Willan Quality Fresh Foods,Environmental Services,Materials For Resale,3/6/2018,42840,619.33
Lancaster City Council,30UH,David Willan Quality Fresh Foods,Environmental Services,Materials For Resale,3/14/2018,42979,792.34
Lancaster City Council,30UH,DCR Inspection Systems Ltd,Health & Housing,Equipment and Tools - General,3/5/2018,spc002766,89.50
Lancaster City Council,30UH,decathlon sports,Health & Housing,Printing & Stationery,2/14/2018,bpc006012,29.53
Lancaster City Council,30UH,Deezer,Health & Housing,Miscellaneous Licences,2/2/2018,bpc005998,9.99
Lancaster City Council,30UH,Deezer,Health & Housing,Miscellaneous Licences,3/6/2018,bpc006065,9.99
Lancaster City Council,30UH,Deezer,Health & Housing,Miscellaneous Licences,3/23/2018,bpc006091,9.99
Lancaster City Council,30UH,Deltawaite Ltd,Environmental Services,Clothing & Uniforms,1/31/2018,42336,50.00
Lancaster City Council,30UH,Dennis Barnfield Ltd,Environmental Services,Equipment and Tools - General,3/6/2018,42821,90.48
Lancaster City Council,30UH,Dennis Barnfield Ltd,Environmental Services,Equipment and Tools - General,3/9/2018,42922,50.00
Lancaster City Council,30UH,Dennis Barnfield Ltd,Environmental Services,Equipment and Tools - General,3/15/2018,43011,27.00
Lancaster City Council,30UH,Dennis Barnfield Ltd,Regeneration and Planning,Equipment and Tools - General,3/1/2018,npc002396,53.86
Lancaster City Council,30UH,Dennis Barnfield Ltd,Regeneration and Planning,Equipment and Tools - General,3/29/2018,npc002477,56.38
Lancaster City Council,30UH,Dennis Barnfield Ltd,Environmental Services,Equipment Maintenance,1/23/2018,42008,910.50
Lancaster City Council,30UH,Dennis Barnfield Ltd,Environmental Services,Materials - General,1/30/2018,42249,56.25
Lancaster City Council,30UH,Dependable Trading LTD Amazon,Resources,R & M - Buildings,3/23/2018,ppc001294,99.70
Lancaster City Council,30UH,designs alike LTD,Health & Housing,Equipment and Tools - General,1/26/2018,bpc005954,35.00
Lancaster City Council,30UH,Discolsure Scotland,Governance,C. R. B. Costs,3/6/2018,lpc000638,25.00
Lancaster City Council,30UH,Discolsure Scotland,Governance,C. R. B. Costs,3/28/2018,lpc000649,25.00
Lancaster City Council,30UH,Discolsure Scotland,Governance,C. R. B. Costs,3/6/2018,lpc000637,25.00
Lancaster City Council,30UH,Districkt777-0,Resources,Service Training Budget,3/2/2018,fpc000297,3.50
Lancaster City Council,30UH,Dvla,Environmental Services,Memorial Safety Work,3/6/2018,42825,57.00
Lancaster City Council,30UH,Dvla,Environmental Services,Vehicle Licences,1/5/2018,42035,19.00
Lancaster City Council,30UH,Dvla,Environmental Services,Vehicle Licences,1/5/2018,42057,19.00
Lancaster City Council,30UH,Dvla,Environmental Services,Vehicle Licences,1/8/2018,42025,652.50
Lancaster City Council,30UH,Dvla,Environmental Services,Vehicle Licences,1/8/2018,42026,202.50
Lancaster City Council,30UH,Dvla,Environmental Services,Vehicle Licences,1/8/2018,42027,242.50
Lancaster City Council,30UH,Dvla,Environmental Services,Vehicle Licences,1/8/2018,42028,242.50
Lancaster City Council,30UH,Dvla,Environmental Services,Vehicle Licences,1/31/2018,42335,19.00
Lancaster City Council,30UH,Dvla,Environmental Services,Vehicle Licences,1/31/2018,42337,19.00
Lancaster City Council,30UH,Dvla,Environmental Services,Vehicle Licences,2/12/2018,42462,242.50
Lancaster City Council,30UH,Dvla,Environmental Services,Vehicle Licences,2/12/2018,42463,652.50
Lancaster City Council,30UH,Dvla,Environmental Services,Vehicle Licences,2/12/2018,42502,242.50
Lancaster City Council,30UH,Dvla,Environmental Services,Vehicle Licences,2/19/2018,42506,242.50
Lancaster City Council,30UH,Dvla,Environmental Services,Vehicle Licences,3/27/2018,43199,247.50
Lancaster City Council,30UH,Dvla,Environmental Services,Vehicle Licences,3/28/2018,43229,19.00
Lancaster City Council,30UH,Dvla,Regeneration and Planning,Vehicle Licences,1/23/2018,npc002282,242.50
Lancaster City Council,30UH,E Batteries,Resources,Purchase Of Equipment,1/2/2018,jpc001170,181.96
Lancaster City Council,30UH,Ebuyer.com,Management Team,Office Equipment,3/8/2018,mpc000100,39.42
Lancaster City Council,30UH,ecotricity,Regeneration and Planning,Electricity,1/23/2018,npc002279,35.52
Lancaster City Council,30UH,ecotricity,Regeneration and Planning,Electricity,1/23/2018,npc002280,35.51
Lancaster City Council,30UH,ecotricity,Regeneration and Planning,Electricity,2/12/2018,npc002384,29.31
Lancaster City Council,30UH,ecotricity,Regeneration and Planning,Electricity,3/20/2018,npc002452,37.43
Lancaster City Council,30UH,Eden Farm Hulleys,Health & Housing,Materials For Resale,2/15/2018,bpc006017,141.12
Lancaster City Council,30UH,Eden Farm Hulleys,Health & Housing,Materials For Resale,3/5/2018,bpc006060,108.90
Lancaster City Council,30UH,Eden Farm Hulleys,Health & Housing,Materials For Resale,3/29/2018,bpc006108,214.48
Lancaster City Council,30UH,"EEFUN Trade CO.,LTD",Resources,R & M - Buildings,2/5/2018,ppc001223,55.94
Lancaster City Council,30UH,Elemis,Health & Housing,Materials - General,1/26/2018,spc002667,1661.75
Lancaster City Council,30UH,Elemis,Health & Housing,Materials - General,1/31/2018,spc002691,434.40
Lancaster City Council,30UH,Elemis,Health & Housing,Materials - General,2/28/2018,spc002743,414.30
Lancaster City Council,30UH,Elemis,Health & Housing,Materials - General,3/2/2018,spc002749,451.20
Lancaster City Council,30UH,EliteGroup,Resources,Telephones,3/21/2018,jpc001257,205.39
Lancaster City Council,30UH,Elmtree Press,Regeneration and Planning,Miscellaneous Advertising,2/9/2018,npc002361,522.00
Lancaster City Council,30UH,Emergency Planning Society,Health & Housing,Service Training Budget,1/30/2018,spc002681,240.00
Lancaster City Council,30UH,EntrePrises,Health & Housing,Equipment and Tools - General,1/29/2018,bpc005972,263.00
Lancaster City Council,30UH,Epson,Health & Housing,Office Equipment,3/6/2018,bpc006064,42.79
Lancaster City Council,30UH,Eriks Industrial Services Ltd.,Environmental Services,Materials - General,3/2/2018,42723,82.47
Lancaster City Council,30UH,ESE Direct,Environmental Services,Contracted Services,3/6/2018,42823,69.84
Lancaster City Council,30UH,Eservice,Health & Housing,Homelessness Priority Need Order,1/23/2018,spc002659,24.95
Lancaster City Council,30UH,Euro Bulbs UK Ltd,Environmental Services,Bedding Plants,3/2/2018,42719,111.25
Lancaster City Council,30UH,Eurocarparts,Environmental Services,Equipment and Tools - General,3/6/2018,42818,0.06
Lancaster City Council,30UH,Eurocarparts,Environmental Services,Equipment and Tools - General,2/21/2018,42540,49.67
Lancaster City Council,30UH,Euroffice,Environmental Services,Materials - General,3/6/2018,42824,20.37
Lancaster City Council,30UH,EverEdge,Environmental Services,R & M - General,2/23/2018,42584,83.50
Lancaster City Council,30UH,Exercise Anywhere,Health & Housing,Equipment and Tools - General,1/28/2018,bpc005961,578.65
Lancaster City Council,30UH,Expedia.co.uk,Health & Housing,Use Of Public Tpt - Officers,3/6/2018,bpc006066,501.67
Lancaster City Council,30UH,Facebook,Health & Housing,Marketing,1/30/2018,bpc005987,14.11
Lancaster City Council,30UH,Facebook,Health & Housing,Marketing,3/1/2018,bpc006039,14.39
Lancaster City Council,30UH,Facebook,Health & Housing,Marketing,3/1/2018,bpc006040,60.00
Lancaster City Council,30UH,Facebook,Health & Housing,Marketing,3/1/2018,bpc006041,60.00
Lancaster City Council,30UH,Facebook,Health & Housing,Marketing,3/1/2018,bpc006042,19.24
Lancaster City Council,30UH,Facebook,Health & Housing,Marketing,3/29/2018,bpc006118,60.00
Lancaster City Council,30UH,Facebook,Regeneration and Planning,Miscellaneous Advertising,2/1/2018,42322,12.04
Lancaster City Council,30UH,Facebook,Regeneration and Planning,Miscellaneous Advertising,2/1/2018,42332,20.00
Lancaster City Council,30UH,Facebook,Regeneration and Planning,Miscellaneous Advertising,2/1/2018,42333,20.00
Lancaster City Council,30UH,Facebook,Regeneration and Planning,Miscellaneous Advertising,3/1/2018,42739,34.98
Lancaster City Council,30UH,Facebook,Regeneration and Planning,Miscellaneous Advertising,3/1/2018,42746,29.99
Lancaster City Council,30UH,Facebook,Regeneration and Planning,Miscellaneous Advertising,3/1/2018,42747,29.99
Lancaster City Council,30UH,Facebook,Regeneration and Planning,Miscellaneous Advertising,3/23/2018,43149,58.36
Lancaster City Council,30UH,Facebook,Regeneration and Planning,Miscellaneous Advertising,3/23/2018,43150,16.64
Lancaster City Council,30UH,Facebook,Regeneration and Planning,Miscellaneous Advertising,3/29/2018,43253,21.93
Lancaster City Council,30UH,Facebook,Regeneration and Planning,Miscellaneous Advertising,1/2/2018,npc002263,4.77
Lancaster City Council,30UH,Facebook,Regeneration and Planning,Miscellaneous Advertising,1/2/2018,npc002264,5.69
Lancaster City Council,30UH,Facebook,Regeneration and Planning,Miscellaneous Advertising,1/2/2018,npc002265,14.26
Lancaster City Council,30UH,Facebook,Regeneration and Planning,Miscellaneous Advertising,1/2/2018,npc002267,26.09
Lancaster City Council,30UH,Facebook,Regeneration and Planning,Miscellaneous Advertising,1/2/2018,npc002268,86.25
Lancaster City Council,30UH,Facebook,Regeneration and Planning,Miscellaneous Advertising,1/2/2018,npc002270,226.98
Lancaster City Council,30UH,Facebook,Regeneration and Planning,Miscellaneous Advertising,1/31/2018,npc002331,7.04
Lancaster City Council,30UH,Facebook,Regeneration and Planning,Miscellaneous Advertising,1/31/2018,npc002332,24.31
Lancaster City Council,30UH,Facebook,Regeneration and Planning,Miscellaneous Advertising,1/31/2018,npc002333,29.90
Lancaster City Council,30UH,Facebook,Regeneration and Planning,Miscellaneous Advertising,1/31/2018,npc002334,35.79
Lancaster City Council,30UH,Facebook,Regeneration and Planning,Miscellaneous Advertising,1/31/2018,npc002335,44.49
Lancaster City Council,30UH,Facebook,Regeneration and Planning,Miscellaneous Advertising,1/31/2018,npc002336,155.81
Lancaster City Council,30UH,Facebook,Regeneration and Planning,Miscellaneous Advertising,3/5/2018,npc002402,25.00
Lancaster City Council,30UH,Facebook,Regeneration and Planning,Miscellaneous Advertising,3/5/2018,npc002403,168.59
Lancaster City Council,30UH,Facebook,Regeneration and Planning,Miscellaneous Advertising,3/20/2018,npc002446,100.00
Lancaster City Council,30UH,Facebook,Regeneration and Planning,Miscellaneous Advertising,3/20/2018,npc002447,322.08
Lancaster City Council,30UH,Facebook,Regeneration and Planning,Miscellaneous Advertising,3/20/2018,npc002448,117.00
Lancaster City Council,30UH,Facebook,Regeneration and Planning,Miscellaneous Advertising,3/20/2018,npc002449,9.04
Lancaster City Council,30UH,Facebook,Regeneration and Planning,Miscellaneous Advertising,3/26/2018,npc002460,367.71
Lancaster City Council,30UH,Facebook,Regeneration and Planning,Miscellaneous Advertising,3/29/2018,npc002472,86.70
Lancaster City Council,30UH,Facebook,Regeneration and Planning,Printing & Stationery,2/2/2018,42364,24.85
Lancaster City Council,30UH,Facebook,Regeneration and Planning,Printing & Stationery,2/2/2018,42365,44.72
Lancaster City Council,30UH,Facebook,Regeneration and Planning,Printing & Stationery,3/1/2018,42664,83.06
Lancaster City Council,30UH,Facebook,Regeneration and Planning,Printing & Stationery,3/1/2018,42665,8.13
Lancaster City Council,30UH,Facebook,Regeneration and Planning,Printing & Stationery,3/8/2018,42906,0.94
Lancaster City Council,30UH,Facebook,Regeneration and Planning,Printing & Stationery,3/8/2018,42908,30.60
Lancaster City Council,30UH,Facebook,Regeneration and Planning,Printing & Stationery,3/8/2018,42909,19.06
Lancaster City Council,30UH,Facebook ,Regeneration and Planning,Miscellaneous Advertising,3/29/2018,43254,23.16
Lancaster City Council,30UH,Facebook ,Regeneration and Planning,Printing & Stationery,3/8/2018,42901,92.24
Lancaster City Council,30UH,Facebook ,Regeneration and Planning,Printing & Stationery,3/8/2018,42907,9.40
Lancaster City Council,30UH,Farm Foods,Governance,Civic Receptions & Mayoral Functions,3/23/2018,dpc000625,17.00
Lancaster City Council,30UH,FAST KEYS,Resources,Equipment and Tools - General,2/22/2018,ppc001245,21.77
Lancaster City Council,30UH,FAST KEYS,Health & Housing,Printing & Stationery,2/20/2018,hpc000683,26.77
Lancaster City Council,30UH,FAST KEYS,Health & Housing,Printing & Stationery,3/5/2018,hpc000700,6.04
Lancaster City Council,30UH,FAST KEYS,Health & Housing,Printing & Stationery,3/5/2018,hpc000701,27.90
Lancaster City Council,30UH,FAST KEYS,Resources,Equipment and Tools - General,1/15/2018,ppc001208,11.02
Lancaster City Council,30UH,Fiddlers Lancashire Crisps,Environmental Services,Materials For Resale,1/23/2018,42004,96.50
Lancaster City Council,30UH,Fiddlers Lancashire Crisps,Environmental Services,Materials For Resale,3/14/2018,42983,144.75
Lancaster City Council,30UH,Fire and Safety Systems LTD,Resources,R & M - Buildings,2/22/2018,ppc001236,10.82
Lancaster City Council,30UH,Fleet (Line Markers) Ltd,Environmental Services,Materials - General,3/20/2018,43086,571.78
Lancaster City Council,30UH,Florence Roby,Health & Housing,Clothing & Uniforms,1/23/2018,spc002653,130.45
Lancaster City Council,30UH,FR Jones and Son Ltd,Environmental Services,Clothing & Uniforms,1/30/2018,42233,117.42
Lancaster City Council,30UH,FR Jones and Sons Ltd,Environmental Services,Equipment and Tools - General,2/8/2018,42429,17.29
Lancaster City Council,30UH,Furness Fluid Power,Environmental Services,Equipment and Tools - General,1/30/2018,42223,15.70
Lancaster City Council,30UH,Furniture Matters,Health & Housing,Flexible Homelessness Support,1/24/2018,spc002663,350.00
Lancaster City Council,30UH,Furniture@work,Environmental Services,Equipment and Tools - General,2/21/2018,42541,99.00
Lancaster City Council,30UH,GAS SAFE,Environmental Services,Subscriptions,3/23/2018,43161,258.00
Lancaster City Council,30UH,Gastronomy Plus Ltd Sous Vide ,Health & Housing,Service Training Budget,1/24/2018,spc002661,65.00
Lancaster City Council,30UH,George Speight and Sons Ltd,Resources,Materials For Resale,2/1/2018,ppc001210,682.56
Lancaster City Council,30UH,George Speight and Sons Ltd,Environmental Services,Materials - General,1/23/2018,42017,57.80
Lancaster City Council,30UH,George Speight and Sons Ltd,Environmental Services,Materials - General,3/6/2018,42830,118.92
Lancaster City Council,30UH,George Speight and Sons Ltd,Environmental Services,Materials - General,3/14/2018,42988,99.59
Lancaster City Council,30UH,George Speight and Sons Ltd,Environmental Services,Materials For Resale,1/23/2018,42018,535.51
Lancaster City Council,30UH,George Speight and Sons Ltd,Environmental Services,Materials For Resale,3/6/2018,42829,544.16
Lancaster City Council,30UH,George Speight and Sons Ltd,Environmental Services,Materials For Resale,3/14/2018,42989,689.37
Lancaster City Council,30UH,George Speight and Sons Ltd,Resources,Materials For Resale,3/7/2018,ppc001264,351.41
Lancaster City Council,30UH,Gerrard International,Health & Housing,Materials - General,1/31/2018,spc002690,116.30
Lancaster City Council,30UH,Gerrard International ,Health & Housing,Materials - General,2/9/2018,spc002706,834.75
Lancaster City Council,30UH,Gills Pantry,Health & Housing,Tenants Participation,1/3/2018,hpc000661,144.46
Lancaster City Council,30UH,Glasdon,Environmental Services,Equipment and Tools - General,2/20/2018,42675,530.64
Lancaster City Council,30UH,Glasdon,Environmental Services,R & M - Buildings (Within Service),3/13/2018,42963,1102.92
Lancaster City Council,30UH,Glasdon,Environmental Services,Contractual Grounds Maintenance,3/21/2018,43096,4620.00
Lancaster City Council,30UH,Glasdon,Environmental Services,Equipment and Tools - General,2/21/2018,42538,3872.83
Lancaster City Council,30UH,Glasdon,Environmental Services,Playground Improvements,1/23/2018,41978,4620.00
Lancaster City Council,30UH,Go Daddy,Regeneration and Planning,Internet Provision,3/15/2018,npc002432,1.49
Lancaster City Council,30UH,Go Nitro,Resources,Electronic Document Management Workflow,1/29/2018,jpc001192,5497.29
Lancaster City Council,30UH,Google,Health & Housing,Miscellaneous Advertising,3/2/2018,bpc006048,28.39
Lancaster City Council,30UH,Gov Connect,Health & Housing,Service Training Budget,1/31/2018,spc002695,354.00
Lancaster City Council,30UH,Green & White Ltd,Health & Housing,Equipment and Tools - General,3/2/2018,bpc006053,61.11
Lancaster City Council,30UH,Green Business UK,Regeneration and Planning,AONB Executive Support,1/30/2018,npc002328,100.00
Lancaster City Council,30UH,Greene King Retailing,Health & Housing,Subsistence,3/5/2018,spc002764,10.82
Lancaster City Council,30UH,Gripsure Ltd,Health & Housing,Materials (Minor Adaptations),1/23/2018,spc002638,418.50
Lancaster City Council,30UH,Habitat,Health & Housing,Equipment and Tools - General,1/30/2018,bpc005991,19.12
Lancaster City Council,30UH,Hala Pet Stores,Environmental Services,Equipment and Tools - General,1/30/2018,42239,51.00
Lancaster City Council,30UH,Hala Pet Stores,Environmental Services,Equipment and Tools - General,1/30/2018,42240,137.48
Lancaster City Council,30UH,Hala Pet Stores,Environmental Services,Materials - General,3/14/2018,42981,110.88
Lancaster City Council,30UH,Hala Pet Stores,Environmental Services,Materials - General,3/14/2018,42982,17.00
Lancaster City Council,30UH,Halfords,Regeneration and Planning,Office Equipment,3/26/2018,npc002461,81.18
Lancaster City Council,30UH,Harmony,Regeneration and Planning,Equipment and Tools - General,2/15/2018,npc002365,150.00
Lancaster City Council,30UH,Harrisons Packaging Ltd,Environmental Services,Materials - General,3/15/2018,43013,117.72
Lancaster City Council,30UH,Hebridean seaweed,Health & Housing,Materials - General,3/15/2018,spc002797,187.68
Lancaster City Council,30UH,Hebridean seaweed,Health & Housing,Materials - General,3/27/2018,spc002838,197.17
Lancaster City Council,30UH,Highfield,Health & Housing,Services - General,1/23/2018,spc002642,408.00
Lancaster City Council,30UH,Highfield,Health & Housing,Services - General,1/23/2018,spc002643,100.00
Lancaster City Council,30UH,HiQ,Environmental Services,Equipment and Tools - General,2/27/2018,42641,20.83
Lancaster City Council,30UH,HMCTS,Governance,Legal & Court Costs,2/6/2018,lpc000632,1600.00
Lancaster City Council,30UH,Home Bargains,Governance,Corporate Training Budget,1/25/2018,lpc000626,3.00
Lancaster City Council,30UH,Home Bargains,Health & Housing,Equipment and Tools - General,1/26/2018,bpc005955,8.78
Lancaster City Council,30UH,Home Bargains,Environmental Services,Equipment and Tools - General,2/9/2018,42452,12.87
Lancaster City Council,30UH,Home Bargains,Environmental Services,Equipment and Tools - General,2/9/2018,42471,4.16
Lancaster City Council,30UH,Home Bargains,Health & Housing,Equipment and Tools - General,1/26/2018,spc002670,9.92
Lancaster City Council,30UH,Home Bargains,Health & Housing,Equipment and Tools - General,1/26/2018,spc002677,25.36
Lancaster City Council,30UH,Home Bargains,Health & Housing,Equipment and Tools - General,3/20/2018,spc002806,0.82
Lancaster City Council,30UH,Home Bargains,Health & Housing,Equipment and Tools - General,3/20/2018,spc002807,0.65
Lancaster City Council,30UH,Home Bargains,Regeneration and Planning,Exhibitions,3/23/2018,43151,4.81
Lancaster City Council,30UH,Home Bargains,Environmental Services,Materials - General,2/26/2018,42622,4.98
Lancaster City Council,30UH,Home Bargains,Health & Housing,R & M - Buildings,3/2/2018,spc002755,31.39
Lancaster City Council,30UH,Home Bargains,Environmental Services,Hospitality,2/1/2018,42347,9.07
Lancaster City Council,30UH,Homebase,Health & Housing,Equipment and Tools - General,3/23/2018,bpc006088,9.47
Lancaster City Council,30UH,Homebase,Environmental Services,Equipment and Tools - General,1/25/2018,42129,53.27
Lancaster City Council,30UH,Homebase,Environmental Services,Equipment and Tools - General,2/6/2018,42405,13.33
Lancaster City Council,30UH,Homebase,Environmental Services,Equipment and Tools - General,2/9/2018,42441,32.65
Lancaster City Council,30UH,Homebase,Environmental Services,Materials - General,1/31/2018,42288,54.42
Lancaster City Council,30UH,Homemakers 1st Stop,Health & Housing,Equipment and Tools - General,3/21/2018,spc002814,6.67
Lancaster City Council,30UH,Hootsuite,Regeneration and Planning,Internet Provision,3/1/2018,42744,100.66
Lancaster City Council,30UH,Hootsuite,Regeneration and Planning,Marketing,1/2/2018,npc002269,16.11
Lancaster City Council,30UH,Hootsuite,Regeneration and Planning,Marketing,1/31/2018,npc002338,16.09
Lancaster City Council,30UH,Hootsuite,Regeneration and Planning,Marketing,3/5/2018,npc002404,15.45
Lancaster City Council,30UH,Hootsuite,Regeneration and Planning,Marketing,3/29/2018,npc002473,15.69
Lancaster City Council,30UH,Hosemaster,Environmental Services,Equipment and Tools - General,1/30/2018,42277,201.52
Lancaster City Council,30UH,House of Bath,Health & Housing,Materials - General,3/27/2018,spc002825,22.76
Lancaster City Council,30UH,House of Flags,Environmental Services,Entertainment Fees,2/21/2018,42542,262.00
Lancaster City Council,30UH,House of Marbles,Regeneration and Planning,Materials For Resale,1/29/2018,42203,388.64
Lancaster City Council,30UH,Hughes TV & Audio limi,Resources,Equipment and Tools - General,2/23/2018,ppc001249,449.17
Lancaster City Council,30UH,Hughes TV & Audio limi,Resources,Equipment and Tools - General,2/23/2018,ppc001248,449.17
Lancaster City Council,30UH,Hugo Limited,Resources,Cleaning Materials,2/5/2018,ppc001224,146.95
Lancaster City Council,30UH,ID&C ,Regeneration and Planning,Marketing,3/15/2018,npc002431,187.00
Lancaster City Council,30UH,IIA,Resources,Subscriptions,3/21/2018,fpc000303,131.20
Lancaster City Council,30UH,Ikea,Health & Housing,Equipment and Tools - General,1/30/2018,bpc005980,60.00
Lancaster City Council,30UH,Ikea,Health & Housing,Marketing & Promotion,3/5/2018,spc002760,10.83
Lancaster City Council,30UH,Instantprint,Regeneration and Planning,Equipment and Tools - General,1/23/2018,npc002286,25.00
Lancaster City Council,30UH,Instantprint,Regeneration and Planning,Marketing,1/23/2018,npc002272,15.00
Lancaster City Council,30UH,Instantprint,Regeneration and Planning,Marketing,1/23/2018,npc002273,4.16
Lancaster City Council,30UH,Instantprint,Regeneration and Planning,Marketing,1/23/2018,npc002287,16.67
Lancaster City Council,30UH,Instantprint,Regeneration and Planning,Marketing,1/23/2018,npc002288,39.00
Lancaster City Council,30UH,Instantprint,Regeneration and Planning,Marketing,1/23/2018,npc002289,39.00
Lancaster City Council,30UH,Instantprint,Regeneration and Planning,Marketing,1/23/2018,npc002290,16.67
Lancaster City Council,30UH,Instantprint,Regeneration and Planning,Marketing,1/23/2018,npc002291,38.00
Lancaster City Council,30UH,Instantprint,Regeneration and Planning,Marketing,1/23/2018,npc002293,75.83
Lancaster City Council,30UH,Instantprint,Regeneration and Planning,Marketing,1/24/2018,npc002308,24.17
Lancaster City Council,30UH,Instantprint,Regeneration and Planning,Marketing,1/24/2018,npc002309,12.50
Lancaster City Council,30UH,Instantprint,Regeneration and Planning,Marketing,1/24/2018,npc002310,79.00
Lancaster City Council,30UH,Instantprint,Regeneration and Planning,Marketing,1/24/2018,npc002311,89.00
Lancaster City Council,30UH,Instantprint,Regeneration and Planning,Marketing,1/24/2018,npc002312,89.00
Lancaster City Council,30UH,Instantprint,Regeneration and Planning,Marketing,1/24/2018,npc002313,205.83
Lancaster City Council,30UH,Instantprint,Regeneration and Planning,Marketing,1/24/2018,npc002314,40.83
Lancaster City Council,30UH,Instantprint,Regeneration and Planning,Marketing,2/2/2018,npc002340,49.99
Lancaster City Council,30UH,Instantprint,Regeneration and Planning,Marketing,2/13/2018,npc002364,25.82
Lancaster City Council,30UH,Instantprint,Regeneration and Planning,Marketing,2/26/2018,npc002388,34.00
Lancaster City Council,30UH,Instantprint,Regeneration and Planning,Marketing,2/26/2018,npc002389,4.16
Lancaster City Council,30UH,Instantprint,Regeneration and Planning,Marketing,3/7/2018,npc002409,36.00
Lancaster City Council,30UH,Instantprint,Regeneration and Planning,Marketing,3/7/2018,npc002410,4.16
Lancaster City Council,30UH,Instantprint,Regeneration and Planning,Marketing,3/13/2018,npc002423,320.51
Lancaster City Council,30UH,Instantprint,Regeneration and Planning,Marketing,3/13/2018,npc002424,799.32
Lancaster City Council,30UH,Instantprint,Regeneration and Planning,Marketing,3/14/2018,npc002426,0.00
Lancaster City Council,30UH,Instantprint,Regeneration and Planning,Marketing,3/20/2018,npc002451,58.66
Lancaster City Council,30UH,Instantprint,Regeneration and Planning,Marketing,3/22/2018,npc002458,0.00
Lancaster City Council,30UH,Instantprint,Regeneration and Planning,Miscellaneous Advertising,3/29/2018,43256,73.16
Lancaster City Council,30UH,instantprint,Health & Housing,Printing & Stationery,3/29/2018,bpc006110,45.16
Lancaster City Council,30UH,Instantprint,Health & Housing,Printing & Stationery,3/29/2018,bpc006109,57.48
Lancaster City Council,30UH,InstantPrint,Health & Housing,Printing & Stationery,3/2/2018,bpc006052,29.16
Lancaster City Council,30UH,Instantprint,Regeneration and Planning,Printing & Stationery,3/23/2018,43152,108.33
Lancaster City Council,30UH,Instantprint,Regeneration and Planning,Printing & Stationery,3/7/2018,npc002414,53.33
Lancaster City Council,30UH,Instantprint,Regeneration and Planning,Printing & Stationery,3/20/2018,npc002442,8.33
Lancaster City Council,30UH,IOSH,Environmental Services,Corporate Training Budget,1/5/2018,42038,115.00
Lancaster City Council,30UH,IOSH,Governance,Corporate Training Budget,1/16/2018,lpc000620,160.00
Lancaster City Council,30UH,ironmongery direct,Health & Housing,Materials (Minor Adaptations),2/1/2018,spc002697,108.00
Lancaster City Council,30UH,isells.co.uk,Health & Housing,Home Improvement Works,2/19/2018,spc002721,47.23
Lancaster City Council,30UH,Isle of Man Government ,Governance,Legal & Court Costs,3/8/2018,lpc000643,21.00
Lancaster City Council,30UH,ITC Sales,Resources,Computer Equipment,1/2/2018,jpc001176,1409.95
Lancaster City Council,30UH,ITC Sales,Resources,Computer Equipment,1/29/2018,jpc001190,287.95
Lancaster City Council,30UH,ITC Sales,Resources,Equipment and Tools - General,1/2/2018,jpc001174,608.95
Lancaster City Council,30UH,ITC Sales,Resources,Equipment and Tools - General,1/23/2018,jpc001186,1018.58
Lancaster City Council,30UH,ITC sales,Resources,Office Equipment,1/29/2018,jpc001189,287.95
Lancaster City Council,30UH,ITC Sales,Resources,Office Equipment,1/2/2018,jpc001177,1270.93
Lancaster City Council,30UH,ITC Sales,Resources,Office Equipment,1/23/2018,jpc001188,255.98
Lancaster City Council,30UH,ITC Sales,Resources,Printing & Stationery,1/2/2018,jpc001178,158.93
Lancaster City Council,30UH,ITC Sales,Resources,Purchase Of Equipment,1/2/2018,jpc001168,287.95
Lancaster City Council,30UH,ITC Sales,Resources,Purchase Of Equipment,1/23/2018,jpc001179,436.93
Lancaster City Council,30UH,J Atkinson and Co Ltd,Health & Housing,Equipment and Tools - General,2/7/2018,bpc006004,31.12
Lancaster City Council,30UH,J Atkinson and Co Ltd,Health & Housing,Materials For Resale,2/7/2018,bpc006004,464.60
Lancaster City Council,30UH,J Atkinson and Co Ltd,Health & Housing,Materials For Resale,2/16/2018,bpc006018,475.50
Lancaster City Council,30UH,J Atkinson and Co Ltd,Health & Housing,Materials For Resale,3/2/2018,bpc006055,475.50
Lancaster City Council,30UH,J Atkinson and Co Ltd,Health & Housing,Materials For Resale,3/15/2018,bpc006072,21.00
Lancaster City Council,30UH,J Atkinson and Co Ltd,Health & Housing,Materials For Resale,3/15/2018,bpc006073,393.20
Lancaster City Council,30UH,J Atkinson and Co Ltd,Health & Housing,Materials For Resale,1/29/2018,bpc005971,409.24
Lancaster City Council,30UH,J Atkinson and Co Ltd,Health & Housing,Materials For Resale,1/29/2018,bpc005970,716.40
Lancaster City Council,30UH,J Atkinson and Co Ltd,Environmental Services,Equipment and Tools - General,3/6/2018,42834,833.33
Lancaster City Council,30UH,J Atkinson and Co Ltd,Environmental Services,Materials For Resale,1/23/2018,41972,7.78
Lancaster City Council,30UH,J Atkinson and Co Ltd,Environmental Services,Materials For Resale,1/23/2018,41973,759.06
Lancaster City Council,30UH,J Atkinson and Co Ltd,Environmental Services,Materials For Resale,3/5/2018,42797,616.16
Lancaster City Council,30UH,J Atkinson and Co Ltd,Environmental Services,Materials For Resale,3/14/2018,42986,172.40
Lancaster City Council,30UH,J Atkinson and Co Ltd,Environmental Services,Materials For Resale,3/14/2018,42987,515.63
Lancaster City Council,30UH,J Atkinson and Co Ltd,Environmental Services,Contract Maintenance,3/5/2018,42794,609.53
Lancaster City Council,30UH,J Atkinson and Co Ltd,Environmental Services,Materials For Resale,3/5/2018,42795,23.34
Lancaster City Council,30UH,J Sainsburys,Governance,Equipment and Tools - General,1/31/2018,dpc000608,19.20
Lancaster City Council,30UH,JamJar Print Ltd,Regeneration and Planning,Marketing,2/26/2018,npc002391,210.18
Lancaster City Council,30UH,Jewson Limited,Environmental Services,Materials - General,3/2/2018,42725,17.40
Lancaster City Council,30UH,Jewson Limited,Environmental Services,Materials - General,3/5/2018,42769,7.94
Lancaster City Council,30UH,Jewson Limited,Environmental Services,R & M - Buildings (Within Service),3/14/2018,42970,23.79
Lancaster City Council,30UH,JF & E Hadwin Ltd,Regeneration and Planning,Repair & Mtce Of Vehicles,2/26/2018,npc002381,436.39
Lancaster City Council,30UH,JJ Martin (catering Appliance ,Environmental Services,Equipment and Tools - General,1/23/2018,41931,224.00
Lancaster City Council,30UH,JMP Foodservice,Environmental Services,Materials For Resale,1/23/2018,42001,100.48
Lancaster City Council,30UH,JMP Foodservice,Environmental Services,Materials For Resale,1/23/2018,42002,174.64
Lancaster City Council,30UH,JMP Foodservice,Environmental Services,Materials For Resale,3/5/2018,42791,172.06
Lancaster City Council,30UH,JMP Foodservice,Environmental Services,Materials For Resale,3/5/2018,42792,101.27
Lancaster City Council,30UH,JMP Foodservice,Environmental Services,Materials For Resale,3/14/2018,42984,382.37
Lancaster City Council,30UH,JMP Foodservice,Environmental Services,Materials For Resale,3/14/2018,42985,202.75
Lancaster City Council,30UH,JMS Janitorial Supplies Ltd t/,Resources,Cleaning Materials,2/22/2018,ppc001235,16.00
Lancaster City Council,30UH,John Lewis,Regeneration and Planning,Office Equipment,2/12/2018,npc002407,449.17
Lancaster City Council,30UH,Johnsons,Health & Housing,Other Cleaning,1/26/2018,spc002669,20.33
Lancaster City Council,30UH,Johnsons,Health & Housing,R & M - Buildings,3/26/2018,spc002821,16.67
Lancaster City Council,30UH,Johnsons,Health & Housing,Equipment and Tools - General,2/23/2018,bpc006023,49.39
Lancaster City Council,30UH,Johnsons,Health & Housing,Materials - General,3/1/2018,bpc006043,17.96
Lancaster City Council,30UH,Johnsons,Health & Housing,Other Cleaning,3/6/2018,spc002774,17.97
Lancaster City Council,30UH,Johnsons Cleaners,Health & Housing,Equipment and Tools - General,1/29/2018,bpc005973,8.21
Lancaster City Council,30UH,Johnsons Cleaners,Health & Housing,Materials - General,2/25/2018,bpc006026,8.21
Lancaster City Council,30UH,Johnsons Cleaners,Health & Housing,Materials - General,2/25/2018,bpc006027,11.96
Lancaster City Council,30UH,Johnsons Cleaners,Health & Housing,Materials - General,2/25/2018,bpc006028,11.96
Lancaster City Council,30UH,Johnsons Cleaners,Health & Housing,Materials - General,3/1/2018,bpc006038,12.46
Lancaster City Council,30UH,Johnsons Cleaners,Health & Housing,Other Cleaning,1/29/2018,bpc005965,17.18
Lancaster City Council,30UH,Johnsons Cleaners,Health & Housing,Other Cleaning,2/1/2018,bpc005992,11.96
Lancaster City Council,30UH,Johnsons Cleaners,Health & Housing,Other Cleaning,3/29/2018,bpc006115,11.97
Lancaster City Council,30UH,Johnsons Cleaners,Health & Housing,Other Cleaning,3/29/2018,bpc006116,11.97
Lancaster City Council,30UH,Johnsons Cleaners,Health & Housing,Other Cleaning,1/24/2018,bpc005932,9.85
Lancaster City Council,30UH,Just Eat,Regeneration and Planning,Exhibitions & Events - Expenses,1/25/2018,npc002321,29.10
Lancaster City Council,30UH,Just Eat,Regeneration and Planning,Exhibitions & Events - Expenses,1/25/2018,npc002320,14.30
Lancaster City Council,30UH,Kays Cards Ltd,Environmental Services,Printing & Stationery,3/23/2018,43148,0.83
Lancaster City Council,30UH,Kays Cards Ltd,Environmental Services,Equipment and Tools - General,1/25/2018,42131,29.58
Lancaster City Council,30UH,Kays Cards Ltd,Environmental Services,Equipment and Tools - General,3/18/2018,43045,20.25
Lancaster City Council,30UH,Keycraft Ltd,Environmental Services,Materials For Resale,2/27/2018,42637,607.33
Lancaster City Council,30UH,KFC,Regeneration and Planning,Exhibitions & Events - Expenses,3/27/2018,npc002466,14.99
Lancaster City Council,30UH,Killgerm,Health & Housing,Materials - General,1/23/2018,spc002644,222.96
Lancaster City Council,30UH,Killgerm,Health & Housing,Materials - General,1/23/2018,spc002646,200.00
Lancaster City Council,30UH,Killgerm,Health & Housing,Materials - General,3/7/2018,spc002778,532.90
Lancaster City Council,30UH,Killgerm,Health & Housing,Equipment and Tools - General,3/13/2018,spc002787,19.72
Lancaster City Council,30UH,Killgerm,Health & Housing,Materials - General,2/14/2018,spc002716,207.73
Lancaster City Council,30UH,L S Systems Ltd,Environmental Services,Materials - General,3/6/2018,42859,376.99
Lancaster City Council,30UH,labelplanet,Regeneration and Planning,Printing & Stationery,3/20/2018,npc002453,13.75
Lancaster City Council,30UH,Lakeland Steel,Environmental Services,R & M - Buildings (Within Service),1/29/2018,42215,29.67
Lancaster City Council,30UH,Lakes Hospitality Association,Health & Housing,Marketing & Promotion,3/5/2018,spc002765,638.22
Lancaster City Council,30UH,Lancashire County Council,Health & Housing,Services - Burial Of The Dead,1/24/2018,spc002662,4.00
Lancaster City Council,30UH,Lancaster Brewery Ltd,Regeneration and Planning,Bar Supplies,3/16/2018,npc002438,188.00
Lancaster City Council,30UH,Lancaster Brewery Ltd,Regeneration and Planning,Bar Supplies,1/29/2018,npc002325,302.55
Lancaster City Council,30UH,Lancaster Brewery Ltd,Regeneration and Planning,Bar Supplies,3/16/2018,npc002478,179.60
Lancaster City Council,30UH,Lancaster Brewery Ltd,Environmental Services,Equipment and Tools - General,1/23/2018,42016,81.20
Lancaster City Council,30UH,Lancaster House Hotel - Englis,Regeneration and Planning,Services - Consultants,2/5/2018,npc002346,680.00
Lancaster City Council,30UH,Lancaster Training Services Ltd,Environmental Services,Service Training Budget,3/2/2018,42721,200.00
Lancaster City Council,30UH,Lathams of Broughton Ltd,Environmental Services,Materials For Resale,1/30/2018,42238,1012.90
Lancaster City Council,30UH,Lathams of Broughton Ltd,Environmental Services,Materials For Resale,3/6/2018,42828,1091.95
Lancaster City Council,30UH,Lathams of Broughton Ltd,Environmental Services,Materials For Resale,3/14/2018,42980,1781.02
Lancaster City Council,30UH,LBS Worldwide Ltd,Environmental Services,Equipment and Tools - General,3/6/2018,42827,1002.60
Lancaster City Council,30UH,LCR Systems Ltd,Environmental Services,Printing & Stationery,3/6/2018,42832,354.00
Lancaster City Council,30UH,LCR Systems Ltd,Regeneration and Planning,Printing & Stationery,2/19/2018,42508,112.00
Lancaster City Council,30UH,Learning Pool,Governance,Corporate Training Budget,1/30/2018,lpc000630,99.00
Lancaster City Council,30UH,"Leonardini ice cream, Lancaste",Resources,Materials For Resale,1/25/2018,ppc001187,10.83
Lancaster City Council,30UH,Les Mills Fitness,Health & Housing,Miscellaneous Licences,3/26/2018,bpc006094,45.83
Lancaster City Council,30UH,Les Mills Fitness,Health & Housing,Miscellaneous Licences,3/26/2018,bpc006095,22.92
Lancaster City Council,30UH,Les Mills Fitness,Health & Housing,Miscellaneous Licences,3/26/2018,bpc006096,22.92
Lancaster City Council,30UH,Les Mills Fitness,Health & Housing,Miscellaneous Licences,3/26/2018,bpc006097,22.92
Lancaster City Council,30UH,Les Mills Fitness,Health & Housing,Miscellaneous Licences,3/26/2018,bpc006098,22.92
Lancaster City Council,30UH,Lewes District Council,Regeneration and Planning,Subscriptions,2/26/2018,npc002387,330.00
Lancaster City Council,30UH,Lidl,Environmental Services,Equipment and Tools - General,2/9/2018,42442,4.99
Lancaster City Council,30UH,Lidl,Health & Housing,Materials For Resale,2/2/2018,bpc005996,18.34
Lancaster City Council,30UH,Lidl,Health & Housing,Materials For Resale,2/2/2018,bpc005997,13.15
Lancaster City Council,30UH,Lloyd Worrall,Resources,Fixtures & Fittings - General,3/21/2018,ppc001290,15.00
Lancaster City Council,30UH,Local Government Association,Resources,Conferences & Seminars,1/24/2018,fpc000286,238.80
Lancaster City Council,30UH,London Pupae Supplies Ltd,Environmental Services,Equipment and Tools - General,3/15/2018,43005,863.25
Lancaster City Council,30UH,London Pupae Supplies Ltd,Environmental Services,Equipment and Tools - General,1/23/2018,41975,1095.50
Lancaster City Council,30UH,Longlands Inn & Restau,Regeneration and Planning,Hospitality,2/9/2018,npc002359,270.54
Lancaster City Council,30UH,LUL Ticket machine undergroujn,Health & Housing,Use Of Public Tpt - Officers,3/2/2018,bpc006045,9.80
Lancaster City Council,30UH,Luminati,Health & Housing,Marketing,3/27/2018,bpc006100,96.77
Lancaster City Council,30UH,Lyreco,Governance,Corporate Training Budget,3/22/2018,lpc000646,80.37
Lancaster City Council,30UH,Lyreco,Resources,Printing & Stationery,1/8/2018,fpc000280,68.63
Lancaster City Council,30UH,Lyreco,Resources,Printing & Stationery,1/24/2018,fpc000287,25.93
Lancaster City Council,30UH,Lyreco,Governance,Printing & Stationery,1/23/2018,lpc000621,23.65
Lancaster City Council,30UH,Lyreco,Governance,Printing & Stationery,3/6/2018,lpc000639,69.46
Lancaster City Council,30UH,Lyreco,Governance,Printing & Stationery,3/6/2018,lpc000640,39.79
Lancaster City Council,30UH,Lyreco,Resources,Printing & Stationery,2/5/2018,ppc001225,24.14
Lancaster City Council,30UH,Lyreco,Environmental Services,Equipment and Tools - General,2/6/2018,42408,52.99
Lancaster City Council,30UH,Lyreco,Governance,Printing & Stationery,3/5/2018,dpc000615,67.56
Lancaster City Council,30UH,Lyreco,Governance,Printing & Stationery,3/5/2018,dpc000616,101.06
Lancaster City Council,30UH,Lyreco,Governance,Printing & Stationery,3/5/2018,dpc000617,57.20
Lancaster City Council,30UH,Lyreco,Governance,Printing & Stationery,3/29/2018,dpc000627,4.87
Lancaster City Council,30UH,Lyreco,Governance,Printing & Stationery,3/29/2018,dpc000628,9.74
Lancaster City Council,30UH,Lyreco,Resources,Printing & Stationery,3/16/2018,fpc000300,20.45
Lancaster City Council,30UH,Lyreco,Environmental Services,Printing & Stationery,3/14/2018,42978,14.19
Lancaster City Council,30UH,M & S,Health & Housing,Tenants Participation,1/3/2018,hpc000663,41.67
Lancaster City Council,30UH,M & S,Health & Housing,Tenants Participation,2/22/2018,hpc000695,8.33
Lancaster City Council,30UH,M & S,Resources,Materials For Resale,3/6/2018,ppc001255,2.05
Lancaster City Council,30UH,M & S,Resources,Materials For Resale,3/7/2018,ppc001281,2.50
Lancaster City Council,30UH,M & S,Governance,Catering Provisions,3/23/2018,dpc000624,98.50
Lancaster City Council,30UH,M & S,Governance,Civic Receptions & Mayoral Functions,2/14/2018,dpc000612,11.05
Lancaster City Council,30UH,M & S,Health & Housing,Clothing & Uniforms,1/30/2018,bpc005986,133.50
Lancaster City Council,30UH,M & S,Resources,Catering Provisions,2/7/2018,ppc001228,4.00
Lancaster City Council,30UH,M & S,Regeneration and Planning,Hospitality,1/23/2018,npc002275,1.29
Lancaster City Council,30UH,M & S,Regeneration and Planning,Hospitality,1/31/2018,npc002339,8.00
Lancaster City Council,30UH,M & S,Regeneration and Planning,Hospitality,3/1/2018,42663,16.55
Lancaster City Council,30UH,M D Hanafin & Sons Ltd,Environmental Services,R & M - Buildings (Within Service),1/31/2018,42300,89.79
Lancaster City Council,30UH,Mailchimp,Regeneration and Planning,Internet Provision,2/1/2018,42324,112.60
Lancaster City Council,30UH,Mailchimp,Regeneration and Planning,Internet Provision,3/1/2018,42742,110.08
Lancaster City Council,30UH,Mailchimp,Regeneration and Planning,Internet Provision,3/23/2018,43154,109.89
Lancaster City Council,30UH,Mailchimp,Regeneration and Planning,Marketing,1/9/2018,npc002329,62.05
Lancaster City Council,30UH,Mailchimp,Regeneration and Planning,Marketing,3/5/2018,npc002405,109.43
Lancaster City Council,30UH,Mailchimp,Regeneration and Planning,Marketing,3/20/2018,npc002450,109.94
Lancaster City Council,30UH,Mailchimp,Regeneration and Planning,Marketing & Promotion,1/9/2018,npc002329,50.00
Lancaster City Council,30UH,Mailchimp,Regeneration and Planning,Services - General,1/23/2018,npc002271,22.72
Lancaster City Council,30UH,Mailchimp,Regeneration and Planning,Services - General,1/30/2018,npc002327,21.78
Lancaster City Council,30UH,Mailchimp,Regeneration and Planning,Services - General,3/7/2018,npc002415,21.79
Lancaster City Council,30UH,Mailchimp,Regeneration and Planning,Services - General,3/29/2018,npc002476,21.52
Lancaster City Council,30UH,Main Stage,Health & Housing,Equipment and Tools - General,2/5/2018,bpc006000,695.80
Lancaster City Council,30UH,Manchester Metrolink,Health & Housing,Service Training Budget,3/28/2018,spc002827,3.20
Lancaster City Council,30UH,Marvellous Group/PayPal,Health & Housing,Equipment and Tools - General,2/15/2018,bpc006016,150.00
Lancaster City Council,30UH,Matalan,Health & Housing,Clothing & Uniforms,2/12/2018,spc002712,8.33
Lancaster City Council,30UH,Matalan,Health & Housing,Equipment and Tools - General,3/27/2018,bpc006105,80.00
Lancaster City Council,30UH,Matalan,Health & Housing,Equipment and Tools - General,3/27/2018,bpc006106,28.29
Lancaster City Council,30UH,Matalan,Health & Housing,Materials - General,3/27/2018,spc002839,31.71
Lancaster City Council,30UH,McDonalds,Regeneration and Planning,Subsistence,3/23/2018,43156,6.28
Lancaster City Council,30UH,Medisave,Health & Housing,Equipment and Tools - General,3/1/2018,bpc006044,74.07
Lancaster City Council,30UH,MGD online,Health & Housing,Tenants Participation,2/19/2018,hpc000681,58.32
Lancaster City Council,30UH,MGD Online,Health & Housing,Tenants Participation,2/12/2018,hpc000677,58.32
Lancaster City Council,30UH,Morecambe Bay Hotel,Health & Housing,Homelessness Priority Need Order,3/8/2018,spc002780,145.83
Lancaster City Council,30UH,Morecambe Bay Hotel,Health & Housing,Services - Bed and Breakfast,3/8/2018,spc002781,100.00
Lancaster City Council,30UH,Morecambe Hotel,Health & Housing,Subsistence,1/23/2018,spc002656,25.92
Lancaster City Council,30UH,Morecambe TIC,Health & Housing,Equipment and Tools - General,1/25/2018,spc002665,3.32
Lancaster City Council,30UH,Morrisons,Health & Housing,Equipment and Tools - General,1/23/2018,spc002641,3.77
Lancaster City Council,30UH,Morrisons,Governance,Civic Receptions & Mayoral Functions,3/23/2018,dpc000626,303.25
Lancaster City Council,30UH,Morrisons,Regeneration and Planning,Equipment and Tools - General,1/25/2018,npc002318,4.14
Lancaster City Council,30UH,Morrisons,Regeneration and Planning,Exhibitions & Events - Expenses,1/25/2018,npc002322,3.80
Lancaster City Council,30UH,Morrisons,Regeneration and Planning,Exhibitions & Events - Expenses,1/24/2018,npc002316,0.92
Lancaster City Council,30UH,Morrisons,Regeneration and Planning,Exhibitions & Events - Expenses,1/29/2018,npc002324,3.90
Lancaster City Council,30UH,Morrisons,Regeneration and Planning,Exhibitions & Events - Expenses,1/31/2018,npc002330,9.97
Lancaster City Council,30UH,Morrisons,Regeneration and Planning,Exhibitions & Events - Expenses,2/5/2018,npc002343,2.07
Lancaster City Council,30UH,Morrisons,Regeneration and Planning,Exhibitions & Events - Expenses,2/5/2018,npc002344,29.42
Lancaster City Council,30UH,Morrisons,Regeneration and Planning,Exhibitions & Events - Expenses,2/7/2018,npc002354,1.67
Lancaster City Council,30UH,Morrisons,Regeneration and Planning,Exhibitions & Events - Expenses,2/7/2018,npc002355,7.21
Lancaster City Council,30UH,Morrisons,Regeneration and Planning,Exhibitions & Events - Expenses,2/23/2018,npc002377,0.83
Lancaster City Council,30UH,Morrisons,Regeneration and Planning,Exhibitions & Events - Expenses,2/23/2018,npc002378,6.25
Lancaster City Council,30UH,Morrisons,Regeneration and Planning,Exhibitions & Events - Expenses,2/26/2018,npc002379,2.00
Lancaster City Council,30UH,Morrisons,Regeneration and Planning,Exhibitions & Events - Expenses,3/13/2018,npc002418,14.33
Lancaster City Council,30UH,Morrisons,Regeneration and Planning,Exhibitions & Events - Expenses,3/13/2018,npc002419,15.50
Lancaster City Council,30UH,Morrisons,Regeneration and Planning,Exhibitions & Events - Expenses,3/15/2018,npc002428,1.56
Lancaster City Council,30UH,Morrisons,Regeneration and Planning,Exhibitions & Events - Expenses,3/15/2018,npc002429,1.10
Lancaster City Council,30UH,Morrisons,Regeneration and Planning,Exhibitions & Events - Expenses,3/16/2018,npc002437,30.83
Lancaster City Council,30UH,Morrisons,Regeneration and Planning,Exhibitions & Events - Expenses,3/27/2018,npc002467,11.83
Lancaster City Council,30UH,Morrisons,Regeneration and Planning,Exhibitions & Events - Expenses,3/27/2018,npc002468,2.10
Lancaster City Council,30UH,Morrisons,Environmental Services,Hospitality,3/18/2018,43046,18.35
Lancaster City Council,30UH,Morrisons,Health & Housing,Subsistence,1/31/2018,spc002692,5.70
Lancaster City Council,30UH,Multiware via Amazon,Environmental Services,Equipment and Tools - General,2/21/2018,42543,16.65
Lancaster City Council,30UH,My RMD Ltd,Regeneration and Planning,Marketing,2/1/2018,42334,9.54
Lancaster City Council,30UH,Myerscough College,Environmental Services,Service Training Budget,3/8/2018,42910,851.00
Lancaster City Council,30UH,Myerscough College,Environmental Services,Service Training Budget,3/8/2018,42911,235.00
Lancaster City Council,30UH,Myerscough College,Environmental Services,Service Training Budget,3/28/2018,43221,100.00
Lancaster City Council,30UH,N. P. Structures Ltd. T/A Northern Pollytunnels,Environmental Services,Materials - General,2/1/2018,42343,1109.48
Lancaster City Council,30UH,National Express,Regeneration and Planning,National Express,3/12/2018,42940,90.76
Lancaster City Council,30UH,National Express,Health & Housing,Travel Warrants,2/20/2018,spc002725,55.20
Lancaster City Council,30UH,National Rail,Governance,Service Training Budget,1/24/2018,lpc000622,111.25
Lancaster City Council,30UH,Natwest Bank,Management Team,Services - Consultants,3/5/2018,mpc000099,750.00
Lancaster City Council,30UH,New Barns Caravan Park,Regeneration and Planning,AONB Executive Support,1/29/2018,npc002323,400.00
Lancaster City Council,30UH,Newsquest Media,Health & Housing,Marketing & Promotion,3/5/2018,spc002761,60.00
Lancaster City Council,30UH,NEXGADGET.CO.UK,Health & Housing,Equipment Funded by Reserves,2/20/2018,hpc000684,11.28
Lancaster City Council,30UH,Next,Health & Housing,Clothing & Uniforms,3/27/2018,bpc006103,120.83
Lancaster City Council,30UH,Next,Health & Housing,Clothing & Uniforms,3/27/2018,spc002840,206.66
Lancaster City Council,30UH,Nexus,Resources,Telephones,3/2/2018,jpc001218,204.97
Lancaster City Council,30UH,NFP Northern,Health & Housing,Service Training Budget,1/23/2018,spc002652,285.00
Lancaster City Council,30UH,NFP Northern,Health & Housing,Service Training Budget,1/23/2018,spc002654,285.00
Lancaster City Council,30UH,Nile stores,Resources,Service Training Budget,2/8/2018,fpc000296,47.97
Lancaster City Council,30UH,Nisbets,Resources,Clothing & Uniforms,3/6/2018,ppc001256,25.97
Lancaster City Council,30UH,Nisbets,Health & Housing,Equipment and Tools - General,3/23/2018,bpc006092,480.01
Lancaster City Council,30UH,Nisbets,Health & Housing,Materials For Resale,1/25/2018,bpc005946,65.97
Lancaster City Council,30UH,Niton 999,Health & Housing,Equipment and Tools - General,1/23/2018,spc002647,87.90
Lancaster City Council,30UH,NNT Retail Limited,Environmental Services,Printing & Stationery,3/6/2018,42833,1.52
Lancaster City Council,30UH,Nomix Enviro Ltd,Environmental Services,Materials - General,3/14/2018,42967,5044.00
Lancaster City Council,30UH,Northern Rail,Governance,Corporate Training Budget,1/25/2018,lpc000624,20.70
Lancaster City Council,30UH,Northern Rail,Health & Housing,Service Training Budget,3/1/2018,spc002745,55.70
Lancaster City Council,30UH,Northern Rail,Health & Housing,Service Training Budget,3/7/2018,spc002779,31.10
Lancaster City Council,30UH,Northern Rail,Health & Housing,Services - Civil Contingencies,2/20/2018,spc002722,9.00
Lancaster City Council,30UH,Northern Rail,Health & Housing,Tenants Participation,3/5/2018,hpc000697,17.25
Lancaster City Council,30UH,Northern Rail,Health & Housing,Use Of Public Tpt - Officers,1/3/2018,bpc005927,28.60
Lancaster City Council,30UH,Northern Rail,Health & Housing,Use Of Public Tpt - Officers,1/23/2018,spc002648,17.50
Lancaster City Council,30UH,Northern Rail,Health & Housing,Use Of Public Tpt - Officers,2/7/2018,spc002704,18.30
Lancaster City Council,30UH,Northern Rail,Health & Housing,Use Of Public Tpt - Officers,2/13/2018,spc002714,18.30
Lancaster City Council,30UH,Northern Rail,Regeneration and Planning,Use Of Public Tpt - Officers,2/26/2018,npc002385,22.00
Lancaster City Council,30UH,Northern Rail,Regeneration and Planning,Use Of Public Tpt - Officers,2/26/2018,npc002386,16.60
Lancaster City Council,30UH,Nouveau Lashes,Health & Housing,Materials - General,2/22/2018,spc002730,85.94
Lancaster City Council,30UH,OPUS ENERGY,Health & Housing,Electricity,1/2/2018,hpc000657,22.13
Lancaster City Council,30UH,OPUS ENERGY,Health & Housing,Electricity,2/2/2018,hpc000672,21.00
Lancaster City Council,30UH,OPUS ENERGY,Health & Housing,Electricity,2/20/2018,hpc000692,23.10
Lancaster City Council,30UH,Oracle,Resources,Software - Anite Task,2/1/2018,jpc001214,705.61
Lancaster City Council,30UH,Oracle,Resources,Software - Anite Task,2/1/2018,jpc001215,1735.17
Lancaster City Council,30UH,original copy centre,Health & Housing,Printing & Stationery,2/21/2018,spc002729,50.00
Lancaster City Council,30UH,Ovo Energy,Environmental Services,Capital Payments To Contractors,2/1/2018,42340,246.97
Lancaster City Council,30UH,P and A Medical Limited,Governance,Services - Medical Fees,3/6/2018,lpc000636,67.14
Lancaster City Council,30UH,Paper Stone,Health & Housing,Printing & Stationery,3/19/2018,spc002800,214.50
Lancaster City Council,30UH,PCM,Resources,Office Equipment,3/2/2018,jpc001221,772.22
Lancaster City Council,30UH,Pearson VUE,Environmental Services,Service Training Budget,1/31/2018,42329,135.00
Lancaster City Council,30UH,Pelsis,Health & Housing,Materials - General,2/8/2018,spc002705,368.24
Lancaster City Council,30UH,Pelsis,Health & Housing,Materials - General,3/5/2018,spc002771,301.84
Lancaster City Council,30UH,Pelsis,Health & Housing,Materials - General,3/13/2018,spc002793,272.48
Lancaster City Council,30UH,Pentland Plants,Environmental Services,Bedding Plants,3/2/2018,42722,3420.90
Lancaster City Council,30UH,Pentland Plants,Environmental Services,Materials - General,2/1/2018,42341,8333.33
Lancaster City Council,30UH,Pentland Plants,Environmental Services,Materials - General,2/1/2018,42342,901.32
Lancaster City Council,30UH,Pentland Plants,Environmental Services,Materials - General,2/6/2018,42406,2971.15
Lancaster City Council,30UH,People Junction,Environmental Services,Service Training Budget,1/31/2018,42318,459.75
Lancaster City Council,30UH,Peregrine Livefoods Ltd,Environmental Services,Materials - General,1/31/2018,42284,176.50
Lancaster City Council,30UH,Peregrine Livefoods Ltd,Environmental Services,Equipment and Tools - General,3/6/2018,42845,8.80
Lancaster City Council,30UH,Peregrine Livefoods Ltd,Environmental Services,Equipment and Tools - General,3/29/2018,43261,219.42
Lancaster City Council,30UH,Peregrine Livefoods Ltd,Environmental Services,Equipment and Tools - General,3/29/2018,43262,19.00
Lancaster City Council,30UH,Peregrine Livefoods Ltd,Environmental Services,Materials - General,1/31/2018,42283,39.59
Lancaster City Council,30UH,Peregrine Livefoods Ltd,Environmental Services,Materials - General,3/6/2018,42846,148.61
Lancaster City Council,30UH,Performing Rights Society,Resources,Miscellaneous Licences,1/29/2018,ppc001196,371.08
Lancaster City Council,30UH,Permaguard Products Limited,Environmental Services,Void Maintenance - External,3/28/2018,43233,391.50
Lancaster City Council,30UH,Physical Company,Health & Housing,Equipment and Tools - General,1/28/2018,bpc005959,33.32
Lancaster City Council,30UH,Physical Company,Health & Housing,Equipment and Tools - General,2/26/2018,bpc006036,418.58
Lancaster City Council,30UH,Pinnacle Response Ltd,Health & Housing,Services - General,3/28/2018,spc002829,1190.00
Lancaster City Council,30UH,plastic sheets,Health & Housing,Materials (Minor Adaptations),1/24/2018,spc002660,155.44
Lancaster City Council,30UH,Plasticsheets.com,Regeneration and Planning,Equipment and Tools - General,2/20/2018,npc002398,74.04
Lancaster City Council,30UH,Polish Delicatessen,Resources,Materials For Resale,3/7/2018,ppc001261,15.88
Lancaster City Council,30UH,Polish Delicatessen,Resources,Materials For Resale,2/1/2018,ppc001213,17.84
Lancaster City Council,30UH,Post Office Ltd,Governance,Support - Postage,2/1/2018,lpc000631,15.30
Lancaster City Council,30UH,Post Office Ltd,Governance,Support - Postage,1/23/2018,lpc000617,33.70
Lancaster City Council,30UH,Post Office Ltd,Environmental Services,Equipment and Tools - General,1/5/2018,42033,4.40
Lancaster City Council,30UH,Post Office Ltd,Health & Housing,Equipment and Tools - General,1/23/2018,spc002645,6.52
Lancaster City Council,30UH,Post Office Ltd,Regeneration and Planning,Printing & Stationery,3/20/2018,npc002440,1.30
Lancaster City Council,30UH,Post Office Ltd,Regeneration and Planning,Printing & Stationery,3/20/2018,npc002441,2.28
Lancaster City Council,30UH,Poundmax fulfiilled by amazon,Environmental Services,Materials - General,1/26/2018,42138,19.95
Lancaster City Council,30UH,Power tool mate,Environmental Services,Equipment and Tools - General,2/6/2018,42404,41.66
Lancaster City Council,30UH,PPG Architectural Coatings UK Limited,Environmental Services,R & M - Buildings (Within Service),3/27/2018,43207,139.14
Lancaster City Council,30UH,PPG Architectural Coatings UK Limited,Environmental Services,R & M - General,2/20/2018,42513,79.04
Lancaster City Council,30UH,Premier Inn,Regeneration and Planning,Business Support,2/15/2018,npc002366,70.82
Lancaster City Council,30UH,Premier Inn,Regeneration and Planning,Research,2/15/2018,npc002367,258.75
Lancaster City Council,30UH,Premier Inn,Health & Housing,Service Training Budget,3/19/2018,spc002801,126.25
Lancaster City Council,30UH,Premier Inn,Regeneration and Planning,Subsistence,1/23/2018,npc002281,50.41
Lancaster City Council,30UH,Premier Inn,Health & Housing,Use Of Public Tpt - Officers,2/6/2018,bpc006003,78.00
Lancaster City Council,30UH,Premier Inn,Health & Housing,Use Of Public Tpt - Officers,3/6/2018,bpc006067,262.50
Lancaster City Council,30UH,Premier Inn,Health & Housing,Use Of Public Tpt - Officers,3/16/2018,bpc006075,75.00
Lancaster City Council,30UH,Printerbase,Resources,Purchase Of Equipment,3/2/2018,jpc001238,114.32
Lancaster City Council,30UH,Printerland,Resources,Equipment and Tools - General,1/2/2018,jpc001171,180.00
Lancaster City Council,30UH,printing.com,Management Team,Conferences & Seminars,1/29/2018,mpc000096,385.00
Lancaster City Council,30UH,Professional Lawns Ltd.,Environmental Services,Materials - General,3/5/2018,42766,120.25
Lancaster City Council,30UH,Professional Lawns Ltd.,Environmental Services,Materials - General,3/26/2018,43186,550.00
Lancaster City Council,30UH,public health england,Health & Housing,Service Training Budget,1/23/2018,spc002649,20.00
Lancaster City Council,30UH,Pye Motors,Health & Housing,Tenants Participation,1/3/2018,hpc000667,62.50
Lancaster City Council,30UH,Q Park Queen Sqaure,Health & Housing,Services - General,3/2/2018,bpc006050,8.30
Lancaster City Council,30UH,"QUALITY PLUS , LANCASTER",Health & Housing,Miscellaneous Expenditure,2/2/2018,hpc000671,350.00
Lancaster City Council,30UH,Quickfire Tableware Ltd,Environmental Services,Equipment and Tools - General,3/6/2018,42831,500.59
Lancaster City Council,30UH,R and F UK Ltd,Environmental Services,Materials - General,2/1/2018,42338,11.17
Lancaster City Council,30UH,Radisson Blu,Health & Housing,Service Training Budget,1/31/2018,spc002696,183.20
Lancaster City Council,30UH,Rainbow Slush,Environmental Services,Materials For Resale,3/15/2018,43008,589.07
Lancaster City Council,30UH,redactive,Resources,Conferences & Seminars,3/22/2018,fpc000306,695.00
Lancaster City Council,30UH,reedly Magistrates Court ,Governance,Legal & Court Costs,2/6/2018,lpc000633,226.00
Lancaster City Council,30UH,Regent Park Station,Regeneration and Planning,R & M - Sea & River / Promenade,1/23/2018,npc002300,24.62
Lancaster City Council,30UH,Rexl UK Ltd,Environmental Services,Equipment and Tools - General,3/22/2018,43129,150.33
Lancaster City Council,30UH,Rhino Textiles,Environmental Services,Equipment and Tools - General,1/5/2018,42070,40.87
Lancaster City Council,30UH,RHS Plants,Environmental Services,Materials - General,3/22/2018,43132,155.54
Lancaster City Council,30UH,RIBA,Environmental Services,Printing & Stationery,3/22/2018,43138,292.33
Lancaster City Council,30UH,Ribble Valley Borough Council,Health & Housing,Subscriptions,3/13/2018,spc002794,250.00
Lancaster City Council,30UH,RICS,Environmental Services,Subscriptions,3/5/2018,42798,153.00
Lancaster City Council,30UH,Rigby Taylor Ltd,Environmental Services,Materials - General,1/23/2018,41999,619.43
Lancaster City Council,30UH,Rigby Taylor Ltd,Environmental Services,Materials - General,2/20/2018,42727,354.00
Lancaster City Council,30UH,Routledge,Regeneration and Planning,Services - General,1/23/2018,npc002274,80.99
Lancaster City Council,30UH,"Royal Hotel, Lancaster",Management Team,Services - Consultants,2/16/2018,mpc000098,1500.00
Lancaster City Council,30UH,Royal Kings Arms Hotel Lancast,Regeneration and Planning,Exhibitions & Events - Expenses,2/9/2018,npc002362,54.12
Lancaster City Council,30UH,RS Online,Health & Housing,Equipment and Tools - General,1/28/2018,bpc005963,40.80
Lancaster City Council,30UH,RV Roger,Environmental Services,R & M - General,2/22/2018,42570,37.00
Lancaster City Council,30UH,RV Roger,Environmental Services,R & M - General,2/22/2018,42571,66.50
Lancaster City Council,30UH,Ryman Stationery,Regeneration and Planning,Printing & Stationery,1/23/2018,npc002276,17.43
Lancaster City Council,30UH,Ryman Stationery,Regeneration and Planning,Office Equipment,3/27/2018,npc002464,17.97
Lancaster City Council,30UH,Ryman Stationery,Regeneration and Planning,Office Equipment,3/27/2018,npc002465,42.85
Lancaster City Council,30UH,Ryman Stationery ,Resources,R & M - Buildings,2/22/2018,ppc001240,33.26
Lancaster City Council,30UH,safe tread,Health & Housing,Materials (Minor Adaptations),2/26/2018,spc002735,71.88
Lancaster City Council,30UH,safe tread,Health & Housing,Materials (Minor Adaptations),2/26/2018,spc002736,125.25
Lancaster City Council,30UH,SAFETY FIRST AID,Environmental Services,First Aid Equipment,3/8/2018,42919,129.60
Lancaster City Council,30UH,SafetyLiftinGear.com,Environmental Services,R & M - General,3/26/2018,43184,22.91
Lancaster City Council,30UH,Sailflags,Regeneration and Planning,Marketing,1/24/2018,npc002303,172.50
Lancaster City Council,30UH,Sainsburys,Resources,Equipment and Tools - General,1/25/2018,ppc001191,22.54
Lancaster City Council,30UH,Sainsburys,Resources,Materials For Resale,1/25/2018,ppc001183,3.75
Lancaster City Council,30UH,Sainsburys,Resources,Materials For Resale,1/25/2018,ppc001186,46.50
Lancaster City Council,30UH,Sainsburys,Resources,Materials For Resale,2/1/2018,ppc001211,4.17
Lancaster City Council,30UH,Sainsburys,Resources,Materials For Resale,2/1/2018,ppc001212,4.17
Lancaster City Council,30UH,Sainsburys,Resources,Materials For Resale,3/7/2018,ppc001262,12.58
Lancaster City Council,30UH,Sainsburys,Health & Housing,Equipment and Tools - General,1/26/2018,spc002671,20.95
Lancaster City Council,30UH,Sainsburys,Environmental Services,Materials - General,1/31/2018,42672,8.33
Lancaster City Council,30UH,Sainsburys,Health & Housing,Tenants Participation,1/2/2018,hpc000654,37.50
Lancaster City Council,30UH,Sainsburys,Health & Housing,Tenants Participation,3/5/2018,hpc000698,12.25
Lancaster City Council,30UH,Sainsburys,Resources,Materials For Resale,1/23/2018,ppc001174,38.75
Lancaster City Council,30UH,Sallys salon services,Health & Housing,Materials - General,2/20/2018,spc002724,53.85
Lancaster City Council,30UH,Sallys salon services,Health & Housing,Equipment and Tools - General,2/13/2018,spc002713,8.38
Lancaster City Council,30UH,Sass and belle  RJB Stone LTD,Environmental Services,Materials For Resale,1/23/2018,41967,51.52
Lancaster City Council,30UH,Scarletts quality plants,Environmental Services,Materials - General,3/22/2018,43131,402.49
Lancaster City Council,30UH,Screwfix Direct Ltd,Health & Housing,Home Improvement Works,1/23/2018,spc002635,149.92
Lancaster City Council,30UH,Screwfix Direct Ltd,Environmental Services,Equipment and Tools - General,3/6/2018,42816,20.58
Lancaster City Council,30UH,Screwfix Direct Ltd,Environmental Services,Equipment and Tools - General,3/6/2018,42817,9.15
Lancaster City Council,30UH,Screwfix Direct Ltd,Environmental Services,Equipment and Tools - General,3/18/2018,43044,6.72
Lancaster City Council,30UH,Screwfix Direct Ltd,Environmental Services,Equipment and Tools - General,2/1/2018,42348,20.82
Lancaster City Council,30UH,Screwfix Direct Ltd,Resources,Equipment and Tools - General,1/31/2018,ppc001204,181.95
Lancaster City Council,30UH,Screwfix Direct Ltd,Regeneration and Planning,Equipment and Tools - General,2/7/2018,npc002351,98.27
Lancaster City Council,30UH,Screwfix Direct Ltd,Regeneration and Planning,Equipment and Tools - General,2/12/2018,npc002408,95.83
Lancaster City Council,30UH,Screwfix Direct Ltd,Health & Housing,Home Improvement Works,1/23/2018,spc002636,166.58
Lancaster City Council,30UH,Screwfix Direct Ltd,Environmental Services,Materials - General,3/29/2018,43250,44.95
Lancaster City Council,30UH,Screwfix Direct Ltd,Health & Housing,Materials - General,1/23/2018,spc002637,19.16
Lancaster City Council,30UH,Screwfix Direct Ltd,Health & Housing,Materials (Minor Adaptations),3/26/2018,spc002816,19.15
Lancaster City Council,30UH,Screwfix Direct Ltd,Environmental Services,Office Equipment,2/6/2018,42407,315.17
Lancaster City Council,30UH,Screwfix Direct Ltd,Resources,R & M - Buildings,1/31/2018,ppc001205,6.25
Lancaster City Council,30UH,Screwfix Direct Ltd,Resources,R & M - Buildings,3/9/2018,ppc001286,184.67
Lancaster City Council,30UH,Screwfix Direct Ltd,Resources,R & M - Buildings,3/16/2018,ppc001288,4.16
Lancaster City Council,30UH,Screwfix Direct Ltd,Health & Housing,Sanctuary Scheme,3/26/2018,spc002817,74.62
Lancaster City Council,30UH,Screwfix Direct Ltd,Environmental Services,Equipment and Tools - General,1/23/2018,42007,349.98
Lancaster City Council,30UH,Screwfix Direct Ltd,Environmental Services,Equipment and Tools - General,1/26/2018,42157,21.66
Lancaster City Council,30UH,Screwfix Direct Ltd,Environmental Services,Equipment and Tools - General,1/26/2018,42154,81.19
Lancaster City Council,30UH,Screwfix Direct Ltd,Environmental Services,Equipment and Tools - General,1/26/2018,42155,7.65
Lancaster City Council,30UH,Screwfix Direct Ltd,Environmental Services,Equipment and Tools - General,1/26/2018,42156,33.32
Lancaster City Council,30UH,Screwfix Direct Ltd,Environmental Services,Equipment and Tools - General,2/27/2018,42633,14.97
Lancaster City Council,30UH,Screwfix Direct Ltd,Environmental Services,Equipment and Tools - General,1/30/2018,42237,51.97
Lancaster City Council,30UH,Screwfix Direct Ltd,Environmental Services,Equipment and Tools - General,2/27/2018,42636,8.32
Lancaster City Council,30UH,Screwfix Direct Ltd,Environmental Services,Equipment and Tools - General,3/6/2018,42842,41.65
Lancaster City Council,30UH,Screwfix Direct Ltd,Environmental Services,Equipment and Tools - General,3/6/2018,42843,63.70
Lancaster City Council,30UH,Screwfix Direct Ltd,Environmental Services,Equipment and Tools - General,3/14/2018,42977,41.66
Lancaster City Council,30UH,Screwfix Direct Ltd,Environmental Services,Equipment and Tools - General,3/16/2018,43041,35.96
Lancaster City Council,30UH,Screwfix Direct Ltd,Environmental Services,Equipment and Tools - General,3/22/2018,43136,11.64
Lancaster City Council,30UH,Screwfix Direct Ltd,Environmental Services,Materials - General,3/14/2018,42976,29.15
Lancaster City Council,30UH,Screwfix Direct Ltd,Health & Housing,Equipment and Tools - General,3/19/2018,bpc006077,12.07
Lancaster City Council,30UH,SETON,Environmental Services,Contracted Services,3/22/2018,43120,92.45
Lancaster City Council,30UH,Seton,Environmental Services,Equipment and Tools - General,3/6/2018,42835,119.76
Lancaster City Council,30UH,Shellys,Health & Housing,Tenants Participation,2/20/2018,hpc000693,72.50
Lancaster City Council,30UH,Shine-Mart LTD,Resources,Equipment and Tools - General,2/22/2018,ppc001241,24.98
Lancaster City Council,30UH,SIGN POST SOLUTIONS,Environmental Services,R & M - General,2/9/2018,42450,286.21
Lancaster City Council,30UH,Signs Express (Lancaster),Regeneration and Planning,Marketing,3/28/2018,npc002471,641.30
Lancaster City Council,30UH,Simon jersey,Environmental Services,Clothing & Uniforms,1/31/2018,42289,37.97
Lancaster City Council,30UH,Sindbad-Eurobus,Health & Housing,Travel Warrants,1/24/2018,spc002664,105.00
Lancaster City Council,30UH,smitcare ltd,Health & Housing,Materials - General,2/5/2018,spc002701,432.50
Lancaster City Council,30UH,Snap frames,Resources,R & M - Buildings,2/22/2018,ppc001247,108.87
Lancaster City Council,30UH,solarcentre,Health & Housing,Sanctuary Scheme,2/26/2018,spc002739,169.82
Lancaster City Council,30UH,solon security ltd,Health & Housing,Sanctuary Scheme,2/1/2018,spc002698,794.25
Lancaster City Council,30UH,solon security ltd,Health & Housing,Sanctuary Scheme,3/13/2018,spc002785,-180.00
Lancaster City Council,30UH,solon security ltd,Health & Housing,Sanctuary Scheme,3/26/2018,spc002819,460.00
Lancaster City Council,30UH,Sound Dynamics,Health & Housing,Equipment and Tools - General,2/5/2018,bpc006001,52.24
Lancaster City Council,30UH,South Lakeland,Regeneration and Planning,Marketing,2/1/2018,42327,2.20
Lancaster City Council,30UH,Spar,Health & Housing,Tenants Participation,1/3/2018,hpc000668,17.37
Lancaster City Council,30UH,Sparsholt College,Health & Housing,Equipment and Tools - General,1/30/2018,spc002679,300.00
Lancaster City Council,30UH,Sparsholt Conf & Event,Health & Housing,Services - General,3/5/2018,spc002770,85.83
Lancaster City Council,30UH,sporting medals.co.uk,Health & Housing,Equipment and Tools - General,3/15/2018,bpc006071,221.55
Lancaster City Council,30UH,Sports Direct.com,Health & Housing,Clothing & Uniforms,1/29/2018,bpc005977,143.32
Lancaster City Council,30UH,Spotify.co.uk,Resources,Miscellaneous Licences,3/7/2018,ppc001278,8.32
Lancaster City Council,30UH,Spotify.com,Resources,Miscellaneous Licences,1/25/2018,ppc001184,8.32
Lancaster City Council,30UH,Spotify.com,Resources,Miscellaneous Licences,2/1/2018,ppc001218,8.32
Lancaster City Council,30UH,St Winifreds,Health & Housing,Homelessness Priority Need Order,1/23/2018,spc002655,100.00
Lancaster City Council,30UH,St Winifreds,Health & Housing,Homelessness Priority Need Order,2/12/2018,spc002708,180.00
Lancaster City Council,30UH,St Winifreds,Health & Housing,Homelessness Priority Need Order,3/6/2018,spc002776,1440.00
Lancaster City Council,30UH,St Winifreds,Health & Housing,Homelessness Priority Need Order,3/15/2018,spc002796,60.00
Lancaster City Council,30UH,St Winifreds,Health & Housing,Homelessness Priority Need Order,3/22/2018,spc002815,210.00
Lancaster City Council,30UH,St Winifreds,Health & Housing,Services - Bed and Breakfast,1/23/2018,spc002655,1350.00
Lancaster City Council,30UH,St Winifreds,Health & Housing,Services - Bed and Breakfast,1/30/2018,spc002682,120.00
Lancaster City Council,30UH,St Winifreds,Health & Housing,Services - Bed and Breakfast,1/31/2018,spc002689,150.00
Lancaster City Council,30UH,St Winifreds,Health & Housing,Services - Bed and Breakfast,2/12/2018,spc002707,530.00
Lancaster City Council,30UH,St Winifreds,Health & Housing,Services - Bed and Breakfast,2/12/2018,spc002708,300.00
Lancaster City Council,30UH,St Winifreds,Health & Housing,Services - Bed and Breakfast,2/12/2018,spc002711,300.00
Lancaster City Council,30UH,St Winifreds,Health & Housing,Services - Bed and Breakfast,2/19/2018,spc002719,480.00
Lancaster City Council,30UH,St Winifreds,Health & Housing,Services - Bed and Breakfast,2/27/2018,spc002742,480.00
Lancaster City Council,30UH,St Winifreds,Health & Housing,Services - Bed and Breakfast,3/6/2018,spc002776,240.00
Lancaster City Council,30UH,St Winifreds,Health & Housing,Services - Bed and Breakfast,3/15/2018,spc002796,510.00
Lancaster City Council,30UH,St Winifreds,Health & Housing,Services - Bed and Breakfast,3/20/2018,spc002811,40.00
Lancaster City Council,30UH,St Winifreds,Health & Housing,Services - Bed and Breakfast,3/22/2018,spc002815,630.00
Lancaster City Council,30UH,St Winifreds,Health & Housing,Services - Bed and Breakfast,3/26/2018,spc002820,980.00
Lancaster City Council,30UH,Station garage Arnside,Regeneration and Planning,Petrol & Derv,1/30/2018,npc002326,59.22
Lancaster City Council,30UH,Station Pub,Regeneration and Planning,Exhibitions & Events - Expenses,3/13/2018,npc002420,73.53
Lancaster City Council,30UH,Stationary Office,Governance,Legal & Court Costs,1/25/2018,lpc000628,2.30
Lancaster City Council,30UH,Stationary Office ,Governance,Legal & Court Costs,1/25/2018,lpc000629,21.25
Lancaster City Council,30UH,Steam Packet Holidays Ltd,Regeneration and Planning,Sea-Cat Sales,2/8/2018,42440,139.92
Lancaster City Council,30UH,Steam Packet Holidays Ltd,Regeneration and Planning,Sea-Cat Sales,3/12/2018,42941,-83.60
Lancaster City Council,30UH,Steam Packet Holidays Ltd,Regeneration and Planning,Sea-Cat Sales,2/2/2018,42371,586.96
Lancaster City Council,30UH,Stonewell Post Office,Governance,Postages,1/31/2018,dpc000610,26.60
Lancaster City Council,30UH,Storm & Lighthouse,Resources,R & M - Buildings,2/22/2018,ppc001243,18.40
Lancaster City Council,30UH,Strulch,Environmental Services,R & M - General,2/27/2018,42630,295.83
Lancaster City Council,30UH,Strulch Ltd,Environmental Services,Grounds Maintenance - Other,3/22/2018,43135,205.00
Lancaster City Council,30UH,Strulch Ltd,Environmental Services,Materials - General,1/9/2018,41977,295.83
Lancaster City Council,30UH,Strulch Ltd,Environmental Services,Materials - General,3/2/2018,42720,295.83
Lancaster City Council,30UH,"Studio Arts, Lancaster",Resources,Printing & Stationery,3/7/2018,ppc001276,5.75
Lancaster City Council,30UH,Sugar Glider Shop,Environmental Services,Equipment and Tools - General,3/22/2018,43123,31.57
Lancaster City Council,30UH,Survey Monkey,Regeneration and Planning,AONB Executive Support,2/12/2018,npc002401,280.00
Lancaster City Council,30UH,Survey Monkey,Regeneration and Planning,Consultation,3/7/2018,npc002416,1700.00
Lancaster City Council,30UH,swim england,Health & Housing,Materials For Resale,1/2/2018,bpc005926,222.50
Lancaster City Council,30UH,Switchshop,Resources,Purchase Of Equipment,1/29/2018,jpc001196,740.60
Lancaster City Council,30UH,T Graham,Regeneration and Planning,R & M - Sea & River / Promenade,1/23/2018,npc002292,13.30
Lancaster City Council,30UH,T Graham,Regeneration and Planning,R & M - Sea & River / Promenade,1/23/2018,npc002294,2.94
Lancaster City Council,30UH,teamstrides LTD ,Health & Housing,Equipment and Tools - General,1/30/2018,bpc005981,595.35
Lancaster City Council,30UH,Tesco,Resources,Catering Provisions,2/22/2018,ppc001246,4.50
Lancaster City Council,30UH,Tesco,Resources,Materials For Resale,1/25/2018,ppc001180,26.75
Lancaster City Council,30UH,Tesco,Resources,Materials For Resale,1/25/2018,ppc001182,2.75
Lancaster City Council,30UH,Tesco,Resources,Materials For Resale,3/7/2018,ppc001263,2.53
Lancaster City Council,30UH,Tesco,Resources,Materials For Resale,3/7/2018,ppc001266,5.15
Lancaster City Council,30UH,Tesco,Resources,Materials For Resale,3/7/2018,ppc001267,12.67
Lancaster City Council,30UH,Tesco,Resources,Materials For Resale,3/7/2018,ppc001270,3.63
Lancaster City Council,30UH,Tesco,Resources,Materials For Resale,3/7/2018,ppc001271,3.80
Lancaster City Council,30UH,Textanywhere,Health & Housing,Materials For Resale,3/6/2018,bpc006063,350.00
Lancaster City Council,30UH,The Buttery,Health & Housing,Equipment and Tools - General,3/20/2018,spc002810,22.90
Lancaster City Council,30UH,The Drowning Prevntion Charity,Health & Housing,Miscellaneous Licences,1/30/2018,bpc005990,43.00
Lancaster City Council,30UH,The Helping Hand Company,Environmental Services,Equipment and Tools - General,1/23/2018,41984,258.00
Lancaster City Council,30UH,The Market Cobbler,Resources,Equipment and Tools - General,2/22/2018,ppc001242,110.23
Lancaster City Council,30UH,The Morecambe Bay Hotel,Health & Housing,Contracted Services,1/3/2018,hpc000665,75.00
Lancaster City Council,30UH,The Morecambe Bay Hotel,Health & Housing,Services - Bed and Breakfast,2/12/2018,spc002709,100.00
Lancaster City Council,30UH,The Morecambe Bay Hotel,Health & Housing,Services - Bed and Breakfast,2/12/2018,spc002710,125.00
Lancaster City Council,30UH,The Morecambe Bay Hotel,Health & Housing,Services - Bed and Breakfast,2/28/2018,spc002744,330.00
Lancaster City Council,30UH,The Morecambe Hotel,Health & Housing,Use Of Public Tpt - Officers,2/23/2018,spc002733,75.00
Lancaster City Council,30UH,The Morecambe Hotel,Health & Housing,Use Of Public Tpt - Officers,3/14/2018,spc002795,20.83
Lancaster City Council,30UH,The One Stop Plastics Ltd,Environmental Services,R & M - Buildings (Within Service),3/26/2018,43183,347.82
Lancaster City Council,30UH,The Outdoors Company,Health & Housing,Clothing & Uniforms,2/12/2018,bpc006011,767.92
Lancaster City Council,30UH,The Paper Bag Store,Regeneration and Planning,Printing & Stationery,2/8/2018,42438,1.87
Lancaster City Council,30UH,The Post Office,Health & Housing,Services - General,2/21/2018,spc002726,15.80
Lancaster City Council,30UH,The Rachet Shop ,Environmental Services,Routine Maintenance,3/26/2018,43182,42.40
Lancaster City Council,30UH,The Safety Letterbox Company Ltd,Resources,Fixtures & Fittings - General,2/7/2018,ppc001227,316.00
Lancaster City Council,30UH,the solar centre,Health & Housing,Sanctuary Scheme,3/28/2018,spc002831,502.82
Lancaster City Council,30UH,The Station Pub,Regeneration and Planning,Exhibitions & Events - Expenses,3/13/2018,npc002421,33.12
Lancaster City Council,30UH,The Station Pub,Regeneration and Planning,Exhibitions & Events - Expenses,3/15/2018,npc002430,53.86
Lancaster City Council,30UH,The Trainline,Health & Housing,Children & Young People,2/26/2018,hpc000696,7.80
Lancaster City Council,30UH,The Trainline,Health & Housing,Children & Young People,1/24/2018,hpc000660,8.05
Lancaster City Council,30UH,The Trainline,Health & Housing,Children & Young People,2/15/2018,hpc000680,8.05
Lancaster City Council,30UH,The Trainline,Health & Housing,Children & Young People,3/23/2018,hpc000713,7.80
Lancaster City Council,30UH,The Trainline,Governance,Printing & Stationery,1/23/2018,dpc000605,30.96
Lancaster City Council,30UH,The Trainline,Health & Housing,Service Training Budget,3/5/2018,hpc000703,51.90
Lancaster City Council,30UH,The Trainline,Environmental Services,Use Of Public Tpt - Officers,3/6/2018,42812,9.55
Lancaster City Council,30UH,The Trainline,Environmental Services,Use Of Public Tpt - Officers,3/21/2018,43092,9.55
Lancaster City Council,30UH,The Trainline,Governance,Use Of Public Tpt - Officers,3/20/2018,lpc000644,89.75
Lancaster City Council,30UH,The Trainline,Resources,Use Of Public Tpt - Officers,3/23/2018,jpc001258,9.35
Lancaster City Council,30UH,The Trainline,Regeneration and Planning,Use Of Public Tpt - Officers,1/23/2018,npc002297,25.95
Lancaster City Council,30UH,The Trainline,Health & Housing,Service Training Budget,2/2/2018,hpc000673,10.75
Lancaster City Council,30UH,The Uniform & Leisurewear Company Ltd,Environmental Services,Clothing & Uniforms,1/5/2018,42036,5.00
Lancaster City Council,30UH,The Uniform & Leisurewear Company Ltd,Health & Housing,Clothing & Uniforms,1/30/2018,spc002685,580.50
Lancaster City Council,30UH,The Uniform & Leisurewear Company Ltd,Health & Housing,Clothing & Uniforms,3/9/2018,spc002783,86.00
Lancaster City Council,30UH,The Uniform & Leisurewear Company Ltd,Health & Housing,Equipment and Tools - General,1/30/2018,spc002687,27.50
Lancaster City Council,30UH,The Veterinary Health Centre L,Environmental Services,Services - Vets,3/15/2018,43015,753.56
Lancaster City Council,30UH,The Work Place Depot Ltd,Environmental Services,R & M - General,3/8/2018,42904,71.25
Lancaster City Council,30UH,The Work Place Depot Ltd,Environmental Services,R & M - General,2/22/2018,42572,71.25
Lancaster City Council,30UH,The Work Place Depot Ltd,Environmental Services,R & M - General,2/26/2018,42606,71.25
Lancaster City Council,30UH,The Works,Regeneration and Planning,Services - General,2/23/2018,npc002376,1.67
Lancaster City Council,30UH,Thomas Graham & Sons (Iron & Steel) Ltd,Resources,Cleaning Materials,1/31/2018,ppc001197,95.09
Lancaster City Council,30UH,Thomas Graham & Sons (Iron & Steel) Ltd,Resources,Cleaning Materials,1/31/2018,ppc001198,215.25
Lancaster City Council,30UH,Thomas Graham & Sons (Iron & Steel) Ltd,Resources,Cleaning Materials,2/22/2018,ppc001233,229.40
Lancaster City Council,30UH,Thomas Graham & Sons (Iron & Steel) Ltd,Environmental Services,Cleaning Materials,2/22/2018,42569,115.82
Lancaster City Council,30UH,Thomas Graham & Sons (Iron & Steel) Ltd,Environmental Services,Contractual Grounds Maintenance,3/5/2018,42775,15.29
Lancaster City Council,30UH,Thomas Graham & Sons (Iron & Steel) Ltd,Environmental Services,Materials - General,1/30/2018,42232,112.65
Lancaster City Council,30UH,Thomas Graham & Sons (Iron & Steel) Ltd,Environmental Services,Materials - General,2/1/2018,42344,85.16
Lancaster City Council,30UH,Thomas Graham & Sons (Iron & Steel) Ltd,Environmental Services,Materials - General,2/1/2018,42345,13.61
Lancaster City Council,30UH,Thomas Graham & Sons (Iron & Steel) Ltd,Environmental Services,Materials - General,3/5/2018,42767,74.47
Lancaster City Council,30UH,Thomas Graham & Sons (Iron & Steel) Ltd,Environmental Services,Playground Improvements,1/30/2018,42235,32.92
Lancaster City Council,30UH,Thomas Graham & Sons (Iron & Steel) Ltd,Environmental Services,R & M - Buildings (Within Service),3/12/2018,42942,94.27
Lancaster City Council,30UH,Thomas Graham & Sons (Iron & Steel) Ltd,Environmental Services,R & M - General,1/18/2018,41944,229.27
Lancaster City Council,30UH,Thomas Graham & Sons (Iron & Steel) Ltd,Environmental Services,R & M - General,1/23/2018,41979,165.24
Lancaster City Council,30UH,Thomas Graham & Sons (Iron & Steel) Ltd,Environmental Services,R & M - General,1/23/2018,41981,193.47
Lancaster City Council,30UH,Thomas Graham & Sons (Iron & Steel) Ltd,Environmental Services,R & M - General,1/24/2018,42068,106.38
Lancaster City Council,30UH,Thomas Graham & Sons (Iron & Steel) Ltd,Environmental Services,R & M - General,1/26/2018,42142,119.21
Lancaster City Council,30UH,Thomas Graham & Sons (Iron & Steel) Ltd,Environmental Services,R & M - General,2/20/2018,42515,15.70
Lancaster City Council,30UH,Thomas Graham & Sons (Iron & Steel) Ltd,Environmental Services,R & M - General,2/22/2018,42558,96.44
Lancaster City Council,30UH,Thomas Graham & Sons (Iron & Steel) Ltd,Environmental Services,R & M - General,3/2/2018,42724,44.14
Lancaster City Council,30UH,Thomas Graham & Sons (Iron & Steel) Ltd,Environmental Services,R & M - General,3/6/2018,42853,49.35
Lancaster City Council,30UH,Thomas Graham & Sons (Iron & Steel) Ltd,Environmental Services,R & M - General,3/15/2018,42996,33.27
Lancaster City Council,30UH,Thomas Graham & Sons (Iron & Steel) Ltd,Environmental Services,Routine Maintenance,3/27/2018,43206,637.89
Lancaster City Council,30UH,Thomas Graham & Sons (Iron & Steel) Ltd,Environmental Services,Services - Trade Refuse,2/22/2018,42568,93.30
Lancaster City Council,30UH,Thomas Graham & Sons (Iron & Steel) Ltd,Regeneration and Planning,Equipment and Tools - General,2/6/2018,npc002347,4.80
Lancaster City Council,30UH,Ticket Quarter,Regeneration and Planning,Services - General,1/29/2018,42221,22.00
Lancaster City Council,30UH,Till Roll Superstore,Resources,Printing & Stationery,2/7/2018,rpc000115,55.40
Lancaster City Council,30UH,Till Roll Warehouse,Health & Housing,Printing & Stationery,2/15/2018,bpc006014,285.00
Lancaster City Council,30UH,Tillage,Environmental Services,Materials - General,3/8/2018,42900,470.40
Lancaster City Council,30UH,Timpsons,Regeneration and Planning,Deposits,1/23/2018,npc002296,20.00
Lancaster City Council,30UH,Timpsons,Health & Housing,Equipment and Tools - General,3/20/2018,spc002809,12.00
Lancaster City Council,30UH,Timpsons,Environmental Services,Materials - General,3/2/2018,42726,4.17
Lancaster City Council,30UH,Timpsons,Resources,R & M - Buildings,2/22/2018,ppc001239,33.33
Lancaster City Council,30UH,Timpsons,Regeneration and Planning,R & M - Buildings (Within Service),1/23/2018,npc002299,32.50
Lancaster City Council,30UH,Timpsons,Regeneration and Planning,Equipment and Tools - General,1/9/2018,npc002315,12.50
Lancaster City Council,30UH,Timpsons,Regeneration and Planning,Printing & Stationery,1/23/2018,npc002277,8.33
Lancaster City Council,30UH,TM Ltd,Health & Housing,Printing & Stationery,2/25/2018,bpc006034,144.00
Lancaster City Council,30UH,toolstation,Health & Housing,Sanctuary Scheme,3/26/2018,spc002818,345.00
Lancaster City Council,30UH,TOTAL MERCHANDISE,Environmental Services,Printing & Stationery,3/8/2018,42920,946.50
Lancaster City Council,30UH,TP Express,Regeneration and Planning,Use Of Public Tpt - Officers,1/23/2018,npc002295,70.10
Lancaster City Council,30UH,TP Express,Regeneration and Planning,Use Of Public Tpt - Officers,1/23/2018,npc002298,83.00
Lancaster City Council,30UH,TP Express,Regeneration and Planning,Use Of Public Tpt - Officers,2/2/2018,npc002341,11.20
Lancaster City Council,30UH,Trade UK Account,Environmental Services,Materials - General,1/5/2018,42049,25.00
Lancaster City Council,30UH,Transport for London,Health & Housing,Use Of Public Tpt - Officers,3/20/2018,bpc006080,60.55
Lancaster City Council,30UH,Travellodge,Governance,Service Training Budget,1/24/2018,lpc000623,77.92
Lancaster City Council,30UH,Travellodge,Governance,Service Training Budget,3/8/2018,lpc000641,-75.42
Lancaster City Council,30UH,Travelodge,Health & Housing,Equipment and Tools - General,1/25/2018,spc002666,55.83
Lancaster City Council,30UH,Travelodge,Regeneration and Planning,Marketing,2/1/2018,42325,70.83
Lancaster City Council,30UH,Travelodge,Resources,Service Training Budget,3/2/2018,jpc001217,37.50
Lancaster City Council,30UH,Travelodge,Health & Housing,Services - Bed and Breakfast,1/30/2018,spc002683,-134.00
Lancaster City Council,30UH,Travelodge,Governance,Services - Consultants,3/20/2018,lpc000645,149.17
Lancaster City Council,30UH,Travelodge,Resources,Subsistence,1/29/2018,jpc001194,40.83
Lancaster City Council,30UH,Travelodge,Resources,Subsistence,3/2/2018,jpc001223,34.17
Lancaster City Council,30UH,Travis Perkins,Environmental Services,Equipment and Tools - General,1/30/2018,42245,53.92
Lancaster City Council,30UH,Travis Perkins,Environmental Services,Equipment and Tools - General,3/6/2018,42849,15.72
Lancaster City Council,30UH,Travis Perkins,Environmental Services,Equipment and Tools - General,3/6/2018,42850,34.00
Lancaster City Council,30UH,Travis Perkins,Environmental Services,Materials - General,1/30/2018,42242,35.68
Lancaster City Council,30UH,Travis Perkins,Environmental Services,Materials - General,3/14/2018,42975,19.95
Lancaster City Council,30UH,Twiends,Regeneration and Planning,Marketing,1/31/2018,npc002337,29.73
Lancaster City Council,30UH,Twiends,Regeneration and Planning,Marketing,3/29/2018,npc002474,35.02
Lancaster City Council,30UH,Twiends,Regeneration and Planning,Marketing,3/5/2018,npc002406,34.16
Lancaster City Council,30UH,UK Paper Rolls,Health & Housing,Printing & Stationery,2/15/2018,bpc006013,360.00
Lancaster City Council,30UH,UK POS,Health & Housing,Equipment and Tools - General,1/28/2018,bpc005960,59.75
Lancaster City Council,30UH,UK POS,Health & Housing,Marketing,2/25/2018,bpc006032,66.22
Lancaster City Council,30UH,UK POS,Health & Housing,Marketing,3/27/2018,bpc006099,224.22
Lancaster City Council,30UH,UK POS,Environmental Services,Other Fixed Plant,3/22/2018,43128,326.58
Lancaster City Council,30UH,UK POS,Health & Housing,Printing & Stationery,3/2/2018,bpc006051,44.90
Lancaster City Council,30UH,UKPOS,Health & Housing,Marketing,2/2/2018,bpc005993,119.03
Lancaster City Council,30UH,Ultra Secure Direct,Resources,Equipment and Tools - General,1/16/2018,ppc001193,307.25
Lancaster City Council,30UH,Uniform,Health & Housing,Equipment and Tools - General,1/30/2018,spc002688,14.50
Lancaster City Council,30UH,Uniform & Leisure,Health & Housing,Clothing & Uniforms,1/30/2018,spc002680,14.50
Lancaster City Council,30UH,Uniform and leisurewear compan,Regeneration and Planning,Clothing & Uniforms,3/1/2018,npc002397,204.38
Lancaster City Council,30UH,Univeristy of Hull,Regeneration and Planning,Research,2/15/2018,npc002368,150.00
Lancaster City Council,30UH,Viking Diect Ltd,Environmental Services,Materials - General,1/2/2018,41879,14.67
Lancaster City Council,30UH,Viking Diect Ltd,Regeneration and Planning,Printing & Stationery,1/23/2018,41914,115.91
Lancaster City Council,30UH,Viking Diect Ltd,Regeneration and Planning,Printing & Stationery,3/27/2018,43201,137.63
Lancaster City Council,30UH,Viking Diect Ltd,Environmental Services,Printing & Stationery,3/5/2018,42737,37.47
Lancaster City Council,30UH,Viking Diect Ltd,Environmental Services,Equipment and Tools - General,2/27/2018,42635,56.11
Lancaster City Council,30UH,Viking Diect Ltd,Environmental Services,Equipment and Tools - General,1/26/2018,42152,269.97
Lancaster City Council,30UH,Viking Diect Ltd,Environmental Services,Equipment and Tools - General,1/31/2018,42285,27.55
Lancaster City Council,30UH,Viking Diect Ltd,Environmental Services,Materials - General,3/28/2018,43230,54.98
Lancaster City Council,30UH,Virgin Trains,Resources,Use Of Public Tpt - Officers,1/8/2018,fpc000279,20.10
Lancaster City Council,30UH,Virgin Trains,Resources,Use Of Public Tpt - Officers,1/8/2018,fpc000281,-25.60
Lancaster City Council,30UH,Virgin Trains,Resources,Use Of Public Tpt - Officers,1/8/2018,fpc000282,21.80
Lancaster City Council,30UH,Virgin Trains,Resources,Use Of Public Tpt - Officers,1/8/2018,fpc000283,31.25
Lancaster City Council,30UH,Virgin Trains,Resources,Use Of Public Tpt - Officers,1/24/2018,fpc000284,50.80
Lancaster City Council,30UH,Virgin Trains,Resources,Use Of Public Tpt - Officers,1/24/2018,fpc000288,37.60
Lancaster City Council,30UH,Virgin Trains,Resources,Use Of Public Tpt - Officers,1/24/2018,fpc000289,41.60
Lancaster City Council,30UH,Virgin Trains,Resources,Use Of Public Tpt - Officers,2/8/2018,fpc000292,79.60
Lancaster City Council,30UH,Virgin Trains,Resources,Use Of Public Tpt - Officers,2/8/2018,fpc000293,147.95
Lancaster City Council,30UH,Virgin Trains,Resources,Use Of Public Tpt - Officers,3/21/2018,fpc000304,220.40
Lancaster City Council,30UH,Virgin Trains,Resources,Use Of Public Tpt - Officers,3/22/2018,fpc000305,23.80
Lancaster City Council,30UH,Virgin Trains,Resources,Use Of Public Tpt - Officers,1/2/2018,jpc001169,8.00
Lancaster City Council,30UH,Virgin Trains,Resources,Use Of Public Tpt - Officers,1/29/2018,jpc001191,10.20
Lancaster City Council,30UH,Virgin Trains,Resources,Use Of Public Tpt - Officers,1/29/2018,jpc001195,17.00
Lancaster City Council,30UH,Virgin Trains,Resources,Use Of Public Tpt - Officers,3/2/2018,jpc001220,88.25
Lancaster City Council,30UH,Virgin Trains,Resources,Use Of Public Tpt - Officers,3/2/2018,jpc001222,25.20
Lancaster City Council,30UH,Virgin Trains,Resources,Use Of Public Tpt - Officers,3/2/2018,jpc001224,88.25
Lancaster City Council,30UH,Virgin Trains,Resources,Use Of Public Tpt - Officers,3/2/2018,jpc001225,37.40
Lancaster City Council,30UH,Virgin Trains,Resources,Use Of Public Tpt - Officers,3/16/2018,jpc001247,25.20
Lancaster City Council,30UH,Virgin Trains,Regeneration and Planning,Miscellaneous Advertising,2/26/2018,npc002392,-130.00
Lancaster City Council,30UH,Virgin Trains,Health & Housing,Use Of Public Tpt - Officers,3/8/2018,bpc006068,436.70
Lancaster City Council,30UH,Virgin Trains,Health & Housing,Clothing & Uniforms,2/2/2018,spc002699,246.50
Lancaster City Council,30UH,Virgin Trains,Governance,Corporate Training Budget,1/25/2018,lpc000625,33.60
Lancaster City Council,30UH,Virgin Trains,Health & Housing,Materials - General,2/26/2018,spc002741,101.90
Lancaster City Council,30UH,Virgin Trains,Governance,Member - Training,1/31/2018,dpc000609,98.50
Lancaster City Council,30UH,Virgin Trains,Governance,Members Expenses - Travel,1/31/2018,dpc000607,72.10
Lancaster City Council,30UH,Virgin Trains,Governance,Members Expenses - Travel,3/14/2018,dpc000619,96.50
Lancaster City Council,30UH,Virgin Trains,Governance,Members Expenses - Travel,3/21/2018,dpc000622,30.80
Lancaster City Council,30UH,Virgin Trains,Governance,Service Training Budget,3/6/2018,dpc000618,13.60
Lancaster City Council,30UH,Virgin Trains,Health & Housing,Service Training Budget,3/5/2018,spc002763,124.00
Lancaster City Council,30UH,Virgin Trains,Health & Housing,Service Training Budget,3/19/2018,spc002802,70.10
Lancaster City Council,30UH,Virgin Trains,Governance,Services - General,3/2/2018,dpc000613,18.40
Lancaster City Council,30UH,Virgin Trains,Health & Housing,Tenants Participation,1/29/2018,hpc000670,12.00
Lancaster City Council,30UH,Virgin Trains,Health & Housing,Use Of Public Tpt - Officers,2/6/2018,bpc006002,20.30
Lancaster City Council,30UH,Virgin Trains,Health & Housing,Use Of Public Tpt - Officers,2/26/2018,bpc006035,27.40
Lancaster City Council,30UH,Virgin Trains,Health & Housing,Use Of Public Tpt - Officers,3/20/2018,bpc006078,230.00
Lancaster City Council,30UH,Virgin Trains,Health & Housing,Use Of Public Tpt - Officers,3/29/2018,bpc006107,224.40
Lancaster City Council,30UH,Virgin Trains,Governance,Use Of Public Tpt - Officers,3/23/2018,dpc000623,33.60
Lancaster City Council,30UH,Virgin Trains,Governance,Use Of Public Tpt - Officers,2/14/2018,dpc000611,15.40
Lancaster City Council,30UH,Virgin Trains,Resources,Use Of Public Tpt - Officers,1/12/2018,fpc000277,44.20
Lancaster City Council,30UH,Virgin Trains,Resources,Use Of Public Tpt - Officers,1/22/2018,fpc000278,18.80
Lancaster City Council,30UH,Virgin Trains,Resources,Use Of Public Tpt - Officers,2/1/2018,fpc000290,20.30
Lancaster City Council,30UH,Virgin Trains,Resources,Use Of Public Tpt - Officers,3/9/2018,fpc000299,29.40
Lancaster City Council,30UH,Virgin Trains,Governance,Use Of Public Tpt - Officers,3/8/2018,lpc000642,6.10
Lancaster City Council,30UH,Virgin Trains,Health & Housing,Use Of Public Tpt - Officers,3/1/2018,spc002746,73.75
Lancaster City Council,30UH,Virgin Trains,Resources,Use Of Public Tpt - Officers,3/21/2018,jpc001255,24.30
Lancaster City Council,30UH,Virgin Trains,Management Team,Use Of Public Tpt - Officers,2/7/2018,mpc000097,60.05
Lancaster City Council,30UH,Virgin Trains,Management Team,Use Of Public Tpt - Officers,3/14/2018,mpc000102,96.50
Lancaster City Council,30UH,Virgin Trains,Management Team,Use Of Public Tpt - Officers,1/29/2018,mpc000095,46.25
Lancaster City Council,30UH,Virgin Trains,Regeneration and Planning,Use Of Public Tpt - Officers,1/23/2018,npc002285,178.00
Lancaster City Council,30UH,Virgin Trains,Regeneration and Planning,Use Of Public Tpt - Officers,1/24/2018,npc002306,33.00
Lancaster City Council,30UH,Virgin Trains,Regeneration and Planning,Use Of Public Tpt - Officers,1/24/2018,npc002307,33.00
Lancaster City Council,30UH,Virgin Trains,Regeneration and Planning,Use Of Public Tpt - Officers,2/5/2018,npc002345,55.00
Lancaster City Council,30UH,Virgin Trains,Regeneration and Planning,Use Of Public Tpt - Officers,2/26/2018,npc002390,146.20
Lancaster City Council,30UH,Virgin Trains,Regeneration and Planning,Use Of Public Tpt - Officers,2/26/2018,npc002393,-130.00
Lancaster City Council,30UH,Virgin Trains,Regeneration and Planning,Use Of Public Tpt - Officers,1/23/2018,npc002284,174.00
Lancaster City Council,30UH,Virgin West Coast,Health & Housing,Services - Civil Contingencies,2/20/2018,spc002723,7.80
Lancaster City Council,30UH,Virgin West Coast,Health & Housing,Service Training Budget,3/28/2018,spc002826,25.20
Lancaster City Council,30UH,Virtual Foto via Amazon,Environmental Services,Entertainment Fees,2/6/2018,42403,27.75
Lancaster City Council,30UH,Vistaprint,Governance,Printing & Stationery,1/26/2018,dpc000606,17.38
Lancaster City Council,30UH,Wellworking,Resources,Office Equipment,3/21/2018,jpc001256,165.83
Lancaster City Council,30UH,West Coast glass,Resources,R & M - Buildings,1/31/2018,ppc001222,34.07
Lancaster City Council,30UH,West Coast Trains,Health & Housing,Use Of Public Tpt - Officers,3/29/2018,bpc006111,54.70
Lancaster City Council,30UH,West Coast Trains,Regeneration and Planning,Use Of Public Tpt - Officers,3/1/2018,42748,3.90
Lancaster City Council,30UH,West Coast Trains,Regeneration and Planning,Use Of Public Tpt - Officers,3/23/2018,43155,25.20
Lancaster City Council,30UH,West Coast Trains,Health & Housing,Use Of Public Tpt - Officers,1/11/2018,spc002812,15.40
Lancaster City Council,30UH,West Coast Trains,Health & Housing,Use Of Public Tpt - Officers,3/5/2018,spc002762,20.00
Lancaster City Council,30UH,West Coast Trains,Regeneration and Planning,Subsistence,2/26/2018,npc002383,20.00
Lancaster City Council,30UH,West Coast Trains,Health & Housing,Use Of Public Tpt - Officers,3/2/2018,bpc006047,83.80
Lancaster City Council,30UH,White Horse Energy,Regeneration and Planning,Misc. Energy Charges,2/12/2018,npc002400,300.24
Lancaster City Council,30UH,WHSmith,Regeneration and Planning,Printing & Stationery,1/8/2018,41935,10.48
Lancaster City Council,30UH,WHSmith,Regeneration and Planning,Printing & Stationery,1/30/2018,42254,6.00
Lancaster City Council,30UH,WHSmith,Regeneration and Planning,Printing & Stationery,1/8/2018,41936,4.99
Lancaster City Council,30UH,WHSmith,Resources,Equipment and Tools - General,3/6/2018,ppc001259,32.07
Lancaster City Council,30UH,Wickes,Health & Housing,Equipment and Tools - General,1/30/2018,spc002684,19.44
Lancaster City Council,30UH,Wickes,Environmental Services,Materials - General,2/20/2018,42514,13.55
Lancaster City Council,30UH,Wickes,Health & Housing,Materials - General,2/2/2018,spc002700,58.10
Lancaster City Council,30UH,Wickes,Health & Housing,Materials (Minor Adaptations),2/26/2018,spc002740,57.51
Lancaster City Council,30UH,Wickes,Resources,R & M - Buildings,1/31/2018,ppc001203,67.20
Lancaster City Council,30UH,Wickes,Resources,R & M - Buildings,2/28/2018,ppc001250,355.00
Lancaster City Council,30UH,Wickes,Resources,R & M - Buildings,3/23/2018,ppc001298,227.37
Lancaster City Council,30UH,Wicksteed Leisure Limited,Environmental Services,Playground Improvements,2/20/2018,42535,219.70
Lancaster City Council,30UH,Wilkinson,Resources,Cleaning Materials,2/22/2018,ppc001237,5.42
Lancaster City Council,30UH,Wilkinson,Resources,Office Equipment,1/31/2018,ppc001201,6.67
Lancaster City Council,30UH,Wilkinson,Resources,R & M - Buildings,1/31/2018,ppc001200,61.67
Lancaster City Council,30UH,Wilkinson,Resources,R & M - Buildings,1/31/2018,ppc001202,8.33
Lancaster City Council,30UH,Wilkinson,Resources,R & M - Buildings,2/22/2018,ppc001238,9.17
Lancaster City Council,30UH,Wilko,Resources,Computer Consumables,1/23/2018,jpc001180,2.54
Lancaster City Council,30UH,Wilko,Resources,Equipment and Tools - General,2/21/2018,ppc001232,25.83
Lancaster City Council,30UH,Wilko,Resources,General Office Expenses,3/16/2018,fpc000301,5.37
Lancaster City Council,30UH,Wilko,Health & Housing,Marketing & Promotion,3/5/2018,spc002759,26.45
Lancaster City Council,30UH,Wilko,Regeneration and Planning,Office Equipment,3/1/2018,42662,2.00
Lancaster City Council,30UH,Wilko,Resources,R & M - Buildings,2/14/2018,ppc001230,51.67
Lancaster City Council,30UH,Wilko,Resources,R & M - Buildings,2/14/2018,ppc001231,1.67
Lancaster City Council,30UH,Wilko,Resources,Cleaning Materials,1/15/2018,ppc001206,6.67
Lancaster City Council,30UH,Wilko,Resources,Equipment and Tools - General,1/15/2018,ppc001207,16.67
Lancaster City Council,30UH,Wilko,Health & Housing,Services - General,2/6/2018,hpc000674,17.50
Lancaster City Council,30UH,Wilko,Health & Housing,Services - General,2/13/2018,hpc000679,0.50
Lancaster City Council,30UH,Wilko,Health & Housing,Services - General,2/9/2018,hpc000676,8.75
Lancaster City Council,30UH,Wilko,Resources,Equipment and Tools - General,2/1/2018,ppc001220,67.54
Lancaster City Council,30UH,Wilko,Resources,Equipment and Tools - General,3/6/2018,ppc001258,16.29
Lancaster City Council,30UH,Wilko,Resources,Exhibitions & Events,1/25/2018,ppc001176,21.33
Lancaster City Council,30UH,Willacy Contractors Ltd,Regeneration and Planning,Grounds Maintenance - Other,3/27/2018,npc002469,90.00
Lancaster City Council,30UH,Wolseley UK,Resources,R & M - Buildings,3/13/2018,ppc001287,30.61
Lancaster City Council,30UH,Wolseley UK,Resources,R & M - Buildings,1/16/2018,ppc001195,6.12
Lancaster City Council,30UH,Woodberry of Leamington Spa,Environmental Services,R & M - General,2/23/2018,42577,1100.00
Lancaster City Council,30UH,Xi Training Ltd,Health & Housing,Service Training Budget,3/5/2018,spc002773,170.00
Lancaster City Council,30UH,XL Display,Health & Housing,Equipment and Tools - General,1/30/2018,bpc005989,178.00
Lancaster City Council,30UH,Yes Cartridges,Resources,Printing & Stationery,2/27/2018,rpc000116,49.97
Lancaster City Council,30UH,Yourspares,Environmental Services,Equipment and Tools - General,3/29/2018,43269,6.52
